Workbook

Sheet 計画
C1: １．太陽観測計画
C2: 正中時を求める | D2: 11 | E2: 月 | G2: 9 | H2: 日
C3: １２時の概経度 | D3: 32 | E3: 度 | G3: 50 | H3: 分 | K3: 符号
C4: =D3+G3/60 -> 32.83333333 | D4: =C4/15 -> 2.188888889 | E4: =ROUNDDOWN(D4,0) -> 2 | G4: =D4-E4 -> 0.1888888889 | H4: =G4*60 -> 11.33333333 | I4: =ROUNDDOWN(H4,0) -> 11 | J4: =H4-I4 -> 0.3333333333 | K4: =J4*60 -> 20
D5: 12 | E5: 時 | G5: 0 | H5: 分 | I5: 0 | J5: 秒 | K5: FALSE | L5: =TIME(D5,G5,I5) -> 0.5
D6: 12 | E6: 時 | G6: 0 | H6: 分 | I6: 0 | J6: 秒 | K6: 24-Ｅ◎ | L6: =TIME(D6,G6,I6) -> 0.5
C7: Ｅ◎（Ｕ１２時） | D7: 12 | E7: 時 | G7: 16 | H7: 分 | I7: 12 | J7: 秒 | K7: =L5+L6-L7 -> 0.48875 | L7: =TIME(D7,G7,I7) -> 0.51125
C8: １２時の概経度 | D8: =E4 -> 2 | G8: =I4 -> 11 | H8: 分 | I8: =K4 -> 20 | J8: 秒 | K8: TRUE | L8: =TIME(D8,G8,I8) -> 0.0912037037
C9: 船内使用時 | D9: 2 | E9: 時 | G9: 0 | H9: 分 | K9: =IF(K8,K7-L8,K7+L8) -> 0.3975462963 | L9: =TIME(D9,G9,0) -> 0.08333333333
K10: =IF(K8,K9+L9,K9-L9) -> 0.4808796296 | L10: =ABS(K10) -> 0.4808796296
D11: 入力禁止
C12: 太陽子午線正中時 | D12: ='計（計画）'!D12 -> 11 | E12: 時 | G12: ='計（計画）'!G12 -> 32 | H12: 分 | I12: 頃 | K12: TRUE
C17: B.推測位置を求める
C18: 天測位置決定用図 | D18: 11 | E18: 月 | G18: 9 | H18: 日
C19: による | D19: 9 | E19: 時 | G19: 30 | H19: 分
C21: 出発位置 緯度 | D21: 32 | E21: 度 | G21: 23 | H21: 分 | K21: 符号
C22: 経度 | D22: 32 | E22: 度 | G22: 49 | H22: 分 | K22: 符号
C24: 変緯 | D24: 0 | E24: 度 | G24: 1.8 | H24: 分 | K24: 符号
C25: 変経 | D25: =計算!L36 -> 0 | E25: 度 | G25: 20.3 | H25: 分 | K25: 符号
C27: 到着 | D27: 入力禁止
C28: 推測位置 緯度 | D28: ='計（計画）'!D27 -> 32 | E28: 度 | G28: ='計（計画）'!G27 -> 24.8 | H28: 分 | I28: ='計（計画）'!I27 -> S | J28: 符号
C29: 経度 | D29: ='計（計画）'!D28 -> 32 | E29: 度 | G29: ='計（計画）'!G28 -> 28.7 | H29: 分 | I29: ='計（計画）'!I28 -> Ｅ | J29: 符号
C34: 2.針路（方位）改正
E35: 符号 | J35: 符号
C36: コンパス針路 | D36: 29 | G36: 真針路 | I36: 170
C37: 自差 | D37: 2 | E37: Ｗ | G37: 自差 | I37: 1 | J37: Ｅ
C38: 偏差 | D38: 6 | E38: Ｅ | G38: 偏差 | I38: 3 | J38: Ｗ
D40: 入力禁止 | I40: 入力禁止
C41: 真針路 | D41: ='計（計画）'!D39 -> 33 | G41: コンパス針路 | I41: ='計（計画）'!I39 -> 172
C46: 3.恒星観測計画 | D46: （索星）
C47: 星（恒星）の天測計画 | D47: 年 | E47: 月 | F47: 日 | H47: クロノメ－タ－ | I47: 時 | J47: 分 | K47: 秒
C48: 観測日 | D48: 0 | E48: 10 | F48: 12 | H48: 世界時（ＵＴ） | I48: 17 | J48: 40 | K48: 20
E49: 度 | F49: 分 | G49: 符号 | I49: 度 | J49: 分 | K49: 符号
C50: 推測位置 | D50: 推測緯度 | E50: 25 | F50: 10 | G50: N | H50: 推測経度 | I50: 158 | J50: 48 | K50: E
D52: 例 | G52: 度 | H52: 分
C53: ＡＩＲ ＮＡＶＩＧＡＴＩＯＮ | D53: a表より | E53: 年，月 | G53: 10 | H53: 2 | I53: =G53+H53/60 -> 10.03333333
C54: ＴＡＢＬＥ4より | D54: ｂ表より | E54: 日、時 | G54: 266 | H54: 32 | I54: =G54+H54/60 -> 266.5333333
D55: ｃ表より | E55: 分、秒 | G55: 10 | H55: 7 | I55: =G55+H55/60 -> 10.11666667
D56: GHA | G56: =J56 -> 286 | H56: =J57*60 -> 41 | I56: =I53+I54+I55 -> 286.6833333 | J56: =ROUNDDOWN(I57,0) -> 286
C57: ｗのときチェック入れる | D57: 加算 | E57: 減算 | I57: =IF(I56>=360,I56-360,I56) -> 286.6833333 | J57: =I57-J56 -> 0.6833333333
C58: （E +, W -） | D58: 推測経度 | E58: =I50 -> 158 | G58: =I50 -> 158 | H58: =J50 -> 48 | I58: =G58+H58/60 -> 158.8 | J58: FALSE
D59: LHA | G59: =I60 -> 85 | H59: =J60 -> 29 | I59: =IF(J58,I56-I58,I56+I58) -> 445.4833333 | J59: =IF(I59>=360,I59-360,I59) -> 85.48333333
I60: =ROUNDDOWN(J59,0) -> 85 | J60: =(J59-I60)*60 -> 29
C61: 計算結果 | E61: 入力禁止
C62: 天測する星を見つける | I62: =ROUND(J59,1) -> 85.5
C63: ＡＩＲ ＮＡＶＩＧＡＴＩＯＮ | D63: 7個の | E63: 恒星の方位 | G63: と高度が判明
C64: ＳＩＧＨＴ ＲＥＤＵＣＴＩＯＮ | E64: ='計（計画）'!E61 -> 25 | G64: ='計（計画）'!G61 -> N
C65: ＴＡＢＬＥＳを利用する | E65: ＬＨＡ | G65: ='計（計画）'!G62 -> 86

Sheet 推測
B1: 90度式に変換 | H1: ＫＨ式
B2: 針路・方位
B3: 360度式 | C3: 250 | E3: =IF(C3<90,"Ｎ","") -> 
C5: 符号 | D5: 度 | E5: 符号
B6: ９０度式 | C6: ='計（推測）'!C6 ->  | D6: ='計（推測）'!D6 ->  | E6: ='計（推測）'!E6 -> Ｗ
C7: ='計（推測）'!C7 ->  | D7: ='計（推測）'!D7 ->  | E7: =IF(C3<180,180-C3,"") -> 
C8: ='計（推測）'!C8 -> Ｓ | D8: ='計（推測）'!D8 -> 70 | E8: =IF(270>C3,C3-180,"") -> 70
C9: ='計（推測）'!C9 ->  | D9: ='計（推測）'!D9 ->  | E9: =IF(C3>270,360-C3,"") -> 
B12: 推測位置を求める | H12: ＫＨ式
B13: 中分緯度航法 | M13: =IF(M14,"Ｎ","Ｓ") -> Ｎ
C14: 10 | D14: 月 | E14: 28 | F14: 日 | I14: =IF(I15,"Ｎ","Ｓ") -> Ｓ | K14: ｓｉｎ | L14: ｃｏｓ | M14: =IF(I15,1,-2) -> -2
C15: 9 | D15: 時 | E15: 0 | F15: 分 | I15: FALSE | J15: =RADIANS(E17) -> 1.221730476 | K15: =SIN(J15) -> 0.9396926208 | L15: =COS(J15) -> 0.3420201433 | M15: =IF(M16,"Ｅ","Ｗ") -> Ｅ
C16: 符号 | G16: 符号 | I16: =IF(I17,"Ｅ","Ｗ") -> Ｅ | M16: =IF(I17,1,-2) -> 1
B17: 針路 | E17: 70 | F17: 度 | I17: TRUE | J17: Ｄｌ | K17: Ｄｅｐ | L17: ｌ+ｌ/2 | N17: cosｍｉｄｌ
B18: 航程 | C18: 53 | D18: 海里 | J18: =(C18*L15)/60 -> 0.3021177933 | K18: =C18*K15 -> 49.8037089 | L18: =(K21+M21)/2 -> 27.0989411 | M18: =RADIANS(L18) -> 0.4729657461 | N18: =COS(M18) -> 0.8902212235
C20: 度 | E20: 分 | G20: 符号 | I20: =IF(I21,"Ｎ","Ｓ") -> Ｎ | L20: =I20 -> Ｎ | M20: 符号
B21: 出発緯度 | C21: 27 | E21: 15 | I21: TRUE | K21: =C21+E21/60 -> 27.25 | L21: =IF(I21,1,-2) -> 1 | M21: =IF(M14-L21=0,K21+J18,K21-J18) -> 26.94788221
B22: 出発経度 | C22: 138 | E22: 40 | I22: =IF(I23,"Ｅ","Ｗ") -> Ｗ | K22: =C22+E22/60 -> 138.6666667 | L22: =I22 -> Ｗ | M22: =IF(M16-L23=0,K22+K24,K22-K24) -> 137.7342447
I23: FALSE | K23: ＤＬ | L23: =IF(I23,1,-2) -> -2
C24: 度 | E24: 分 | G24: 符号 | K24: =(K18/N18)/60 -> 0.9324219566
B25: 到達緯度 | C25: ='計（推測）'!C25 -> 26 | E25: ='計（推測）'!E25 -> 56.9 | G25: ='計（推測）'!G25 -> Ｎ | K25: =ROUNDDOWN(M21,0) -> 26 | L25: =(M21-K25)*60 -> 56.8729324 | M25: =ROUND(L25,1) -> 56.9
B26: 到達経度 | C26: ='計（推測）'!C26 -> 137 | E26: ='計（推測）'!E26 -> 44.1 | G26: ='計（推測）'!G26 -> Ｅ | K26: =ROUNDDOWN(M22,0) -> 137 | L26: =(M22-K26)*60 -> 44.0546826 | M26: =ROUND(L26,1) -> 44.1

Sheet 太陽
B2: 天測太陽 | F2: （ | G2: ＫＨメソッド | H2: ）
B3: 第 | C3: 1 | D3: 回目 | E3: 天測
B4: 観測天体 | C4: （太陽1、 | D4: 恒星2）
C5: 1
B6: 観測日 | C6: 2 | D6: 月 | E6: 10 | F6: 日
B7: 観測時間 | C7: 14 | D7: 時 | E7: 50 | F7: 分頃
G8: 符号
B9: 観測時 緯度 | C9: 27 | D9: 度 | E9: 15 | F9: 分
B10: 推測位置 経度 | C10: 138 | D10: 度 | E10: 40 | F10: 分
B12: クロノメ－タ－ | C12: 5 | D12: 時 | E12: 23 | F12: 分 | G12: 46 | H12: 秒
B13: エラ－ | E13: 11 | F13: 分 | G13: 25 | H13: 秒
C14: 進む（-） | E14: 遅れる（+） | G14: 符号
B16: 観測高度（下辺） | C16: 33 | D16: 度 | E16: 34 | F16: 分
B17: 器差 | E17: 0
B19: 天測暦、E◎ｏｒE* | C19: 11 | D19: 時 | E19: 45 | F19: 分 | G19: 43 | H19: 秒
B20: 赤緯（ｄ） | C20: 14 | D20: 度 | E20: 38.7 | F20: 分
B21: 眼高 | C21: 3 | D21: ｍ | G21: 符号
B22: ログ指示値 | C22: 217.3 | D22: 海里
B23: 気温 | C23: 20 | D23: 度Ｃ
B24: 水温 | C24: 20 | D24: 度Ｃ
B25: 天体概方位 | C25: N | D25: 58 | E25: 度 | F25: E | G25: 符号
C27: 入力禁止
B28: 天測結果
B29: 修正差（I） | C29: ='計（太陽）'!C25 -> 11.5 | D29: =IF(C29>100,"ミスがあるか、流されているので注意！","") -> 
C31: 符号
C32: ='計（太陽）'!C28 -> Ｓ | D32: 度 | E32: 符号
B33: 方位角（Z） | C33: ='計（太陽）'!C29 ->  | D33: ='計（太陽）'!D29 -> 47 | E33: ='計（太陽）'!E29 -> Ｗ
C34: ='計（太陽）'!C30 -> 
B39: 太陽の赤緯ｄ
B40: 比例部分の計算 | G40: ｄ
C41: 時 | D41: 分 | E41: 秒 | G41: 度 | I41: 分
B42: 1 | C42: 8 | G42: 20 | I42: 14.5
C43: =TIME(C42,D42,E42) -> 0.3333333333 | G43: =G42+I42/60 -> 20.24166667
B44: 2 | C44: 10 | G44: 20 | I44: 13.4
C45: =TIME(C44,D44,E44) -> 0.4166666667 | D45: =ABS(C45-C43) -> 0.08333333333 | G45: =G44+I44/60 -> 20.22333333 | H45: =ABS(G45-G43) -> 0.01833333333
G46: 入力禁止
B47: 求める比例部分 | C47: 9 | D47: 23 | E47: 0 | G47: =H49 -> 20 | I47: =J49 -> 13.7
C49: =TIME(C47,D47,E47) -> 0.3909722222 | D49: =ABS(C49-C43) -> 0.05763888889 | F49: =H45*D49/D45 -> 0.01268055556 | G49: =IF(G45-G43>0,G43+F49,G43-F49) -> 20.22898611 | H49: =ROUNDDOWN(G49,0) -> 20 | I49: =(G49-H49)*60 -> 13.73916667 | J49: =ROUND(I49,1) -> 13.7
B53: 太陽のE◎
B54: 比例部分の計算
C55: 時 | D55: 分 | E55: 秒 | G55: 時 | H55: 分 | I55: 秒
B56: 1 | C56: 4 | D56: 0 | E56: 0 | G56: 12 | H56: 2 | I56: 32
C57: =TIME(C56,D56,E56) -> 0.1666666667 | G57: =TIME(G56,H56,I56) -> 0.5017592593
B58: 2 | C58: 6 | D58: 0 | E58: 0 | G58: 12 | H58: 2 | I58: 33
C60: =TIME(C58,D58,E58) -> 0.25 | D60: =ABS(C60-C57) -> 0.08333333333 | G60: =TIME(G58,H58,I58) -> 0.5017708333 | H60: =ABS(G60-G57) -> 1.157407407e-05
G61: 入力禁止
B62: 求める比例部分 | C62: 4 | D62: 50 | E62: 0 | G62: =HOUR(G64) -> 12 | H62: =MINUTE(G64) -> 2 | I62: =SECOND(G64) -> 32
C64: =TIME(C62,D62,E62) -> 0.2013888889 | D64: =ABS(C64-C57) -> 0.03472222222 | F64: =D64*H60/D60 -> 4.822530864e-06 | G64: =IF(G60-G57>0,G57+F64,G57-F64) -> 0.5017640818

Sheet 正中時
H1: ＫＨ式
B2: 正中時を求める | C2: 11 | D2: 月 | E2: 9 | F2: 日
B3: １２時の概経度 | C3: 32 | D3: 度 | E3: 50 | F3: 分 | I3: 符号
B4: =C3+E3/60 -> 32.83333333 | C4: =B4/15 -> 2.188888889 | D4: =ROUNDDOWN(C4,0) -> 2 | E4: =C4-D4 -> 0.1888888889 | F4: =E4*60 -> 11.33333333 | G4: =ROUNDDOWN(F4,0) -> 11 | H4: =F4-G4 -> 0.3333333333 | I4: =H4*60 -> 20
C5: 12 | D5: 時 | E5: 0 | F5: 分 | G5: 0 | H5: 秒 | I5: FALSE | J5: =TIME(C5,E5,G5) -> 0.5
C6: 12 | D6: 時 | E6: 0 | F6: 分 | G6: 0 | H6: 秒 | I6: 24-Ｅ◎ | J6: =TIME(C6,E6,G6) -> 0.5
B7: Ｅ◎（Ｕ１２時） | C7: 12 | D7: 時 | E7: 16 | F7: 分 | G7: 12 | H7: 秒 | I7: =J5+J6-J7 -> 0.48875 | J7: =TIME(C7,E7,G7) -> 0.51125
B8: １２時の概経度 | C8: =D4 -> 2 | E8: =G4 -> 11 | F8: 分 | G8: =I4 -> 20 | H8: 秒 | I8: TRUE | J8: =TIME(C8,E8,G8) -> 0.0912037037
B9: 船内使用時 | C9: 2 | D9: 時 | E9: 0 | F9: 分 | I9: =IF(I8,I7-J8,I7+J8) -> 0.3975462963 | J9: =TIME(C9,E9,0) -> 0.08333333333
I10: =IF(I8,I9+J9,I9-J9) -> 0.4808796296 | J10: =ABS(I10) -> 0.4808796296
B11: 太陽子午線正中時 | C11: ='計（正中時）'!C11 -> 11 | D11: 時 | E11: ='計（正中時）'!E11 -> 32 | F11: 分 | G11: 頃 | I11: TRUE
B16: 太陽子午線高度緯度法 | G16: ＫＨ式
B18: 観測日 | C18: 11 | D18: 月 | E18: 9 | F18: 日 | H18: 眼高 | I18: 3 | J18: ｍ
H19: ログ指値 | I19: 0
G20: 気温 | H20: 30 | I20: 水温 | J20: 28
B22: クロノメ－タ－ | C22: 0 | D22: 時 | E22: 0 | F22: 分 | G22: 0 | H22: 秒 | I22: =TIME(C22,E22,G22) -> 0
B23: エラ－ | E23: 0 | G23: 0 | I23: =TIME(0,E23,G23) -> 0
B24: Ｕ | C24: =HOUR(I24) -> 0 | E24: =MINUTE(I24) -> 0 | G24: =SECOND(I24) -> 0 | I24: =I22+I23 -> 0
G25: 符号 | I25: TRUE
B26: 推測緯度（ｌ） | C26: 36 | D26: 度 | E26: 26.7 | F26: 分 | I26: =IF(I25,"Ｎ","Ｓ") -> Ｎ
B27: 経度 | C27: 155 | D27: 度 | E27: 30.2 | F27: 分 | I27: =IF(I25,1,-2) -> 1 | J27: =C26+E26/60 -> 36.445
G28: 符号 | I28: =IF(I29,"Ｎ","Ｓ") -> Ｎ
B29: 天測暦 → 赤緯（ｄ） | C29: 13 | D29: 度 | E29: 1 | F29: 分 | I29: TRUE
G30: 符号
D31: 度 | F31: 分 | I31: ｄ
B32: 観測高度 | C32: 40 | E32: 29 | G32: =C32+E32/60 -> 40.48333333 | H32: =IF(I29,1,-2) -> 1 | I32: =C29+E29/60 -> 13.01666667 | J32: =I32*-1 -> -13.01666667
B33: 器差 | E33: -2.5 | G33: =C33+E33/60 -> -0.04166666667 | H33: =G32+G33 -> 40.44166667
C34: =G34 -> 40 | E34: =H34 -> 26.5 | G34: =ROUNDDOWN(H33,0) -> 40 | H34: =(H33-G34)*60 -> 26.5
B35: 改正1 | C35: 0 | E35: =C83 -> 0 | G35: =C35+E35/60 -> 0
B36: 改正2 | C36: 0 | E36: =H69 -> 0 | G36: =C36+E36/60 -> 0
B37: 改正3 | C37: 0 | E37: =J72 -> 0 | G37: =C37+E37/60 -> 0 | H37: =H33+G35+G36+G37 -> 40.44166667
B38: 真高度 （ａ） | C38: =G38 -> 40 | E38: =H38 -> 26.5 | G38: =ROUNDDOWN(H37,0) -> 40 | H38: =(H37-G38)*60 -> 26.5
C39: 90 | G39: =C39-H37 -> 49.55833333 | H39: =ROUNDDOWN(G39,0) -> 49
B40: ９０－ａ | C40: =H39 -> 49 | E40: =G40 -> 33.5 | G40: =(G39-H39)*60 -> 33.5 | I40: ｌ-ｄ | J40: =J27-I32 -> 23.42833333
F41: ｌ、ｄ異名 | G41: =IF(I41<0,G39+J32,1) -> 1 | H41: ｌ、ｄ同名 | I41: =IF(I27-H32=0,1,-1) -> 1
F42: =ROUNDDOWN(G41,0) -> 1 | G42: =(G41-F42)*60 -> 0
F43: ｌ＞ｄ | G43: =IF(J40>0,I32+G39,I32-G39) -> 62.575 | H43: =ROUNDDOWN(G43,0) -> 62 | I43: =(G43-H43)*60 -> 34.5
C44: （入力禁止） | F44: ｌ＜ｄ
B45: 正中時緯度（ｌ） | C45: =C53 -> 0 | E45: =E53 -> 0 | G45: =G53 ->  | H45: ｌ、ｄ同名の時 | I45: =C45+E45/60 -> 0
B46: 正中時緯度（ｌ） | C46: =C54 -> 36 | E46: =E54 -> 20.2 | G46: =G54 -> Ｎ | H46: ｌ、ｄ異名の時 | I46: =C46+E46/60 -> 36.33666667 | J46: =I45+I46 -> 36.33666667
B48: 修正差（Ｉ）北半球の時 | C48: =IF(E46>100,"ミスがあるか、流されています","") ->  | E48: =E56 -> 6.5 | F48: =F56 -> Ｓ | G48: =IF(J48>0,"Ｓ","Ｎ") -> Ｓ | I48: ｌ－ａ | J48: =J27-J46 -> 0.1083333333
B49: 修正差（Ｉ）南半球の時 | C49: =IF(E49>100,"ミスがあるか、流されています","") ->  | E49: =E57 -> 0 | F49: =F57 -> Ｎ | G49: =IF(J48>0,"Ｎ","Ｓ") -> Ｎ | I49: =J49*60 -> 6.5 | J49: =ABS(J48) -> 0.1083333333
B53: 正中時緯度（ｌ） | C53: ='計（正中時）'!C45 -> 0 | E53: ='計（正中時）'!E45 -> 0 | G53: ='計（正中時）'!G45 ->  | H53: ｌ、ｄ同名の時 | I53: =C53+E53/60 -> 0
B54: 正中時緯度（ｌ） | C54: ='計（正中時）'!C46 -> 36 | E54: ='計（正中時）'!E46 -> 20.2 | G54: ='計（正中時）'!G46 -> Ｎ | H54: ｌ、ｄ異名の時 | I54: =C54+E54/60 -> 36.33666667 | J54: =I53+I54 -> 36.33666667
B56: 修正差（Ｉ）北半球の時 | C56: =IF(E54>100,"ミスがあるか、流されています","") ->  | E56: ='計（正中時）'!E48 -> 6.5 | F56: ='計（正中時）'!F48 -> Ｓ | G56: =IF(J56>0,"Ｓ","Ｎ") -> Ｎ | I56: ｌ－ａ | J56: =J35-J54 -> -36.33666667
B57: 修正差（Ｉ）南半球の時 | C57: =IF(E57>100,"ミスがあるか、流されています","") ->  | E57: ='計（正中時）'!E49 -> 0 | F57: ='計（正中時）'!F49 -> Ｎ | G57: =IF(J56>0,"Ｎ","Ｓ") -> Ｓ | I57: =J57*60 -> 2180.2 | J57: =ABS(J56) -> 36.33666667

Sheet 恒星
B2: 天測恒星 | F2: （ | G2: ＫＨメソッド | H2: ）
C3: 1 | D3: 回目 | E3: 天測
B4: 観測天体 | C4: （太陽1、 | D4: 恒星2） | E4: 2 | G4: 恒星Ｎｏ | H4: 31
B6: 観測日 | C6: 2 | D6: 月 | E6: 10 | F6: 日
B7: 観測時間 | C7: 18 | D7: 時 | E7: 30 | F7: 分頃
B8: 観測高度 | C8: 30 | D8: 度 | E8: 55 | F8: 分
B9: 器差 | E9: 3 | G9: 符号
B10: 観測時 緯度 | C10: 26 | D10: 度 | E10: 56.9 | F10: 分
B11: 推測位置 経度 | C11: 137 | D11: 度 | E11: 44.1 | F11: 分
B13: クロノメ－タ－ | C13: 9 | D13: 時 | E13: 4 | F13: 分 | G13: 28 | H13: 秒
B14: エラ－ | E14: 11 | F14: 分 | G14: 25 | H14: 秒
C15: 進む（-） | E15: 遅れる（+）
B16: 天測暦、E◎ｏｒE* | C16: 1 | D16: 時 | E16: 40 | F16: 分 | G16: 28 | H16: 秒
B17: 赤緯（ｄ） | C17: 5 | D17: 度 | E17: 18.5 | F17: 分
B18: 眼高 | C18: 3 | D18: ｍ | G18: 符号
B19: ログ指示値 | C19: 151.2 | D19: 海里
B20: 気温 | C20: 20 | D20: 度Ｃ
B21: 水温 | C21: 20 | D21: 度Ｃ
B22: 天体概方位 | C22: Ｓ | D22: 20 | E22: 度 | F22: E | G22: 符号
C24: 入力禁止
B25: 天測結果
B26: 修正差（I） | C26: =C77 -> 14.2 | D26: =IF(C26>100,"ミスがあるか、流されているので注意！","") -> 
C28: 符号
C29: =C80 ->  | D29: 度 | E29: 符号
B30: 方位角（Z） | C30: =C81 ->  | D30: =D81 -> 80 | E30: =E81 -> Ｅ
C31: =C82 -> Ｓ
B37: 任意の時間のＥ*を求める
B38: Ｅ* Ｕ＝0時（ｈ） | C38: 1 | D38: ｈ | E38: 38 | F38: ｍ | G38: 56 | H38: ｓ | I38: 天測暦
B39: 求めるＥ*の時間 | C39: 9 | D39: ｈ | E39: 15 | F39: ｍ | G39: 53 | H39: ｓ
C40: =HOUR(H74) -> 1 | E40: =MINUTE(H74) -> 40 | G40: =SECOND(H74) -> 28
C41: 入力禁止
B42: 求めるＥ* | C42: =C40 -> 1 | D42: ｈ | E42: =E40 -> 40 | F42: ｍ | G42: =G40 -> 28 | H42: ｓ
B43: Ｅ* 比例部分 | C43: 分 秒
B44: Ｕ | C44: 0 | D44: 10 | E44: 20 | F44: 30 | G44: 40 | H44: 50 | I44: 60
B45: 0 | C45: 0ｍ00 | D45: 0ｍ02 | E45: 0ｍ03 | F45: 0ｍ05 | G45: 0ｍ07 | H45: 0ｍ08 | I45: 0ｍ10
B46: 1 | C46: 0ｍ10 | D46: 0ｍ11 | E46: 0ｍ13 | F46: 0ｍ15 | G46: 0ｍ16 | H46: 0ｍ18 | I46: 0ｍ20
B47: 2 | C47: 0ｍ20 | D47: 0ｍ21 | E47: 0ｍ23 | F47: 0ｍ25 | G47: 0ｍ26 | H47: 0ｍ28 | I47: 0ｍ30
B48: 3 | C48: 0ｍ30 | D48: 0ｍ31 | E48: 0ｍ33 | F48: 0ｍ34 | G48: 0ｍ36 | H48: 0ｍ38 | I48: 0ｍ39
B49: 4 | C49: 0ｍ39 | D49: 0ｍ41 | E49: 0ｍ43 | F49: 0ｍ44 | G49: 0ｍ46 | H49: 0ｍ48 | I49: 0ｍ49
B50: 5 | C50: 0ｍ49 | D50: 0ｍ51 | E50: 0ｍ53 | F50: 0ｍ54 | G50: 0ｍ56 | H50: 0ｍ57 | I50: 0ｍ59
B51: 6 | C51: 0ｍ59 | D51: 1ｍ01 | E51: 1ｍ02 | F51: 1ｍ04 | G51: 1ｍ06 | H51: 1ｍ07 | I51: 1ｍ09
B52: 7 | C52: 1ｍ09 | D52: 1ｍ11 | E52: 1ｍ12 | F52: 1ｍ14 | G52: 1ｍ16 | H52: 1ｍ17 | I52: 1ｍ19
B53: 8 | C53: 1ｍ19 | D53: 1ｍ20 | E53: 1ｍ22 | F53: 1ｍ24 | G53: 1ｍ25 | H53: 1ｍ27 | I53: 1ｍ29
B54: 9 | C54: 1ｍ29 | D54: 1ｍ30 | E54: 1ｍ32 | F54: 1ｍ34 | G54: 1ｍ35 | H54: 1ｍ37 | I54: 1ｍ39
B55: 10 | C55: 1ｍ39 | D55: 1ｍ40 | E55: 1ｍ42 | F55: 1ｍ43 | G55: 1ｍ45 | H55: 1ｍ47 | I55: 1ｍ48
B56: 11 | C56: 1ｍ48 | D56: 1ｍ50 | E56: 1ｍ52 | F56: 1ｍ53 | G56: 1ｍ55 | H56: 1ｍ57 | I56: 1ｍ58
B57: 12 | C57: 1ｍ58 | D57: 2ｍ00 | E57: 2ｍ02 | F57: 2ｍ03 | G57: 2ｍ05 | H57: 2ｍ06 | I57: 2ｍ08
B58: 13 | C58: 2ｍ08 | D58: 2ｍ10 | E58: 2ｍ11 | F58: 2ｍ13 | G58: 2ｍ15 | H58: 2ｍ16 | I58: 2ｍ18
B59: 14 | C59: 2ｍ18 | D59: 2ｍ20 | E59: 2ｍ21 | F59: 2ｍ23 | G59: 2ｍ25 | H59: 2ｍ26 | I59: 2ｍ28
B60: 15 | C60: 2ｍ28 | D60: 2ｍ29 | E60: 2ｍ31 | F60: 2ｍ33 | G60: 2ｍ34 | H60: 2ｍ36 | I60: 2ｍ38
B61: 16 | C61: 2ｍ38 | D61: 2ｍ39 | E61: 2ｍ41 | F61: 2ｍ43 | G61: 2ｍ44 | H61: 2ｍ46 | I61: 2ｍ47
B62: 17 | C62: 2ｍ48 | D62: 2ｍ49 | E62: 2ｍ51 | F62: 2ｍ52 | G62: 2ｍ54 | H62: 2ｍ56 | I62: 2ｍ57
B63: 18 | C63: 2ｍ57 | D63: 2ｍ59 | E63: 3ｍ01 | F63: 3ｍ02 | G63: 3ｍ04 | H63: 3ｍ06 | I63: 3ｍ07
B64: 19 | C64: 3ｍ07 | D64: 3ｍ09 | E64: 3ｍ11 | F64: 3ｍ12 | G64: 3ｍ14 | H64: 3ｍ15 | I64: 3ｍ17
B65: 20 | C65: 3ｍ17 | D65: 3ｍ19 | E65: 3ｍ20 | F65: 3ｍ22 | G65: 3ｍ24 | H65: 3ｍ25 | I65: 3ｍ27
B66: 21 | C66: 3ｍ27 | D66: 3ｍ29 | E66: 3ｍ30 | F66: 3ｍ32 | G66: 3ｍ34 | H66: 3ｍ35 | I66: 3ｍ37
B67: 22 | C67: 3ｍ37 | D67: 3ｍ38 | E67: 3ｍ40 | F67: 3ｍ42 | G67: 3ｍ43 | H67: 3ｍ45 | I67: 3ｍ47
B68: 23 | C68: 3ｍ47 | D68: 3ｍ48 | E68: 3ｍ50 | F68: 3ｍ52 | G68: 3ｍ53 | H68: 3ｍ55 | I68: 3ｍ57
B70: Ｕ＝０ | C70: ｖｌｕｐ | D70: ｖｌｕｐ | E70: ｖｌｕｐ | F70: ｖｌｕｐ | G70: ｖｌｕｐ | H70: ｖｌｕｐ | I70: ｖｌｕｐ
C71: 0 | D71: 10 | E71: 20 | F71: 30 | G71: 40 | H71: 50 | I71: 60
B72: =C39+E39/60+G39/3600 -> 9.264722222 | C72: =VLOOKUP(B72,B45:I68,2,1) -> 1ｍ29 | D72: 1ｍ30 | E72: 1ｍ32 | F72: 1ｍ34 | G72: 1ｍ35 | H72: 1ｍ37 | I72: 1ｍ39
B73: =E39+G39/60 -> 15.88333333 | D73: ｍ | E73: ｓ | F73: ｈｍｓ（ｐｐ） | G73: ｈｍｓ
B74: =ROUND(B73,-1) -> 20 | C74: =HLOOKUP(B74,C71:I72,2,1) -> 1ｍ32 | D74: =LEFT(C74,1) -> 1 | E74: =MID(C74,3,2) -> 32 | F74: =TIME(0,D74,E74) -> 0.001064814815 | G74: =TIME(C38,E38,G38) -> 0.0687037037 | H74: =F74+G74 -> 0.06976851852
B76: 天測結果
B77: 修正差（I） | C77: ='計（恒星）'!C25 -> 14.2 | D77: =IF(C77>100,"ミスがあるか、流されているので注意！","") -> 
C79: 符号
C80: ='計（恒星）'!C28 ->  | D80: 度 | E80: 符号
B81: 方位角（Z） | C81: ='計（恒星）'!C29 ->  | D81: ='計（恒星）'!D29 -> 80 | E81: ='計（恒星）'!E29 -> Ｅ
C82: ='計（恒星）'!C30 -> Ｓ

Sheet 計算
C3: 時間 | D3: ｈ | E3: ｍ | F3: ｓ | J3: 時間 | L3: ｈ | M3: ｍ | N3: ｓ
D4: 12 | E4: 0 | F4: 0 | J4: + | L4: 6 | M4: 0 | N4: 0
L5: =TIME(L4,M4,N4) -> 0.25 | M5: =L4+M4/60+N4/3600 -> 6 | N5: =IF(O6,0,L5+L8) -> 0
D6: =D4*15 -> 180 | E6: =E4*15 -> 0 | F6: =F4*15 -> 0 | J6: (-) | L6: =IF(M5-M8<0,M5+24-M8,M5+M8) -> 19.44 | M6: =IF(O6,N6,L5+L8) -> 19.44 | N6: =IF(M5>M8,M5-M8,L6) -> 19.44 | O6: TRUE
D7: =E8+D6 -> 180 | E7: =E6/60 -> 0 | F7: =F6/60 -> 0 | J7: 時間 | L7: 10 | M7: 33 | N7: 36
E8: =INT(E7) -> 0 | F8: =ROUND(F7,1) -> 0 | J8: チェック | K8: する | L8: =TIME(L7,M7,N7) -> 0.44 | M8: =L7+M7/60+N7/3600 -> 10.56
E9: =E7-E8 -> 0 | L9: =ROUNDDOWN(N6,0) -> 19 | M9: =(N6-L9)*60 -> 26.4 | N9: =ROUNDDOWN(M9,0) -> 26 | O9: =(M9-N9)*60 -> 24
E10: =E9*60 -> 0 | L10: =L9 -> 19 | M10: =N9 -> 26 | N10: =O9 -> 24 | O10: =IF(L10>=24,L10-24,L10) -> 19
D11: 入力禁止 | L11: 入力禁止
D12: 度 | E12: 分 | J12: 答え | K12: 減算 | L12: =IF(O6,L10,0) -> 19 | M12: =IF(O6,M10,0) -> 26 | N12: =IF(O6,N10,0) -> 24
C13: 角度 | D13: =D7 -> 180 | E13: =E10+F8 -> 0 | J13: 答え | K13: 加算 | L13: =IF(O6,0,HOUR(N5)) -> 0 | M13: =IF(O6,0,MINUTE(N5)) -> 0 | N13: =IF(O6,0,SECOND(N5)) -> 0
L14: FALSE
C17: 角度 | D17: 300 | E17: 0 | K17: 度 | L17: 分
C18: + | J18: 角度 | K18: 158 | L18: 24 | M18: =K18+L18/60 -> 158.4 | N18: =M18/15 -> 10.56
C19: 角度 | D19: 120 | E19: 0 | M19: =ROUNDDOWN(N18,0) -> 10 | N19: =N18-M19 -> 0.56
D20: =D17+D19 -> 420 | E20: =E17+E19 -> 0 | M20: =N19*60 -> 33.6 | N20: =ROUNDDOWN(M20,0) -> 33
D21: =IF(E20>=60,D20+1,D20) -> 420 | E21: =IF(E20>=60,E20-60,E20) -> 0 | K21: 入力禁止 | M21: =M20-N20 -> 0.6 | N21: =M21*60 -> 36
C22: 答え | D22: =IF(D21>=360,D21-360,D21) -> 60 | E22: =E21 -> 0 | F22: 入力禁止 | K22: ｈ | L22: ｍ | M22: ｓ
D23: =D4*15 -> 180 | E23: =E4*15 -> 0 | F23: =F4*15 -> 0
D24: =INT(E24) -> 0 | E24: =E23/60 -> 0 | F24: =F23/60 -> 0
D25: =D23+D24 -> 180 | E25: =(E24-D24)*60 -> 0 | F25: =ROUND(F24,1) -> 0
E26: =E25+F25 -> 0
J27: 時間 | K27: =M19 -> 10 | L27: =N20 -> 33 | M27: =N21 -> 36
C32: 計算 | I32: =IF(I33,"N","S") -> S | J32: =IF(I37,"N","S") -> S | N32: =IF(N33,"Ｅ","Ｗ") -> Ｅ | O32: =IF(N37,"E","W") -> W
D33: 緯度 | E33: 度 | F33: 分 | I33: FALSE | K33: 経度 | L33: 度 | M33: 分 | N33: TRUE
C34: 基準 | D34: =E34+F34/60 -> 32.38333333 | E34: =計画!D21 -> 32 | F34: =計画!G21 -> 23 | K34: =L34+M34/60 -> 32.81666667 | L34: =計画!D22 -> 32 | M34: =計画!G22 -> 49
C35: 位置 | D35: =E36+F36/60 -> 0.03 | E35: 度 | F35: 分 | K35: =L36+M36/60 -> 0.3383333333 | L35: 度 | M35: 分
D36: 変緯 | E36: =計画!D24 -> 0 | F36: =計画!G24 -> 1.8 | K36: 変経 | L36: 0 | M36: =計画!G25 -> 20.3
D37: =IF(I33=I37,D34+D35,D34-D35) -> 32.41333333 | E37: =ROUNDDOWN(D37,0) -> 32 | F37: =(D37-E37)*60 -> 24.8 | I37: FALSE | K37: =IF(N33=N37,K34+K35,K34-K35) -> 32.47833333 | L37: =ROUNDDOWN(K37,0) -> 32 | M37: =(K37-L37)*60 -> 28.7 | N37: FALSE
C39: 推測 | D39: 入力禁止 | E39: 緯度 | F39: 分 | I39: 符号 | K39: 経度 | L39: 分 | M39: 符号
C40: 位置 | E40: =E37 -> 32 | F40: =ABS(F37) -> 24.8 | I40: =D42 -> S | K40: =L37 -> 32 | L40: =ABS(M37) -> 28.7 | M40: =K42 -> Ｅ
D42: =IF(D34>D35,I32,J32) -> S | K42: =IF(K34>K35,N32,O32) -> Ｅ
C45: 針路（方位）改正
E46: 符号 | K46: 符号
C47: コンパス針路 | D47: =計画!D36 -> 29 | F47: 真針路 | J47: =計画!I36 -> 170
C48: 自差 | D48: =計画!D37 -> 2 | E48: =計画!E37 -> Ｗ | I48: 自差 | J48: =計画!I37 -> 1 | K48: =計画!J37 -> Ｅ
D49: =IF(E48="Ｗ",D48*(-1),D48*1) -> -2 | J49: =IF(K48="Ｅ",J48*(-1),J48) -> -1
C50: 偏差 | D50: =計画!D38 -> 6 | E50: =計画!E38 -> Ｅ | I50: 偏差 | J50: =計画!I38 -> 3 | K50: =計画!J38 -> Ｗ
C51: =D47+D49+D51 -> 33 | D51: =IF(E50="Ｅ",D50*1,D50*(-1)) -> 6 | I51: =J47+J49+J51 -> 172 | J51: =IF(K50="Ｗ",J50,J50*(-1)) -> 3
D52: 入力禁止 | F52: 入力禁止 | J52: 入力禁止
C53: 真針路 | D53: =C51 -> 33 | F53: コンパス針路 | J53: =I51 -> 172
C58: 比例部分の計算
D59: 時 | E59: 分 | F59: 秒 | J59: 度 | L59: 分
C60: 1 | D60: 8 | J60: 20 | L60: 2.1
D61: =TIME(D60,E60,F60) -> 0.3333333333 | J61: =J60+L60/60 -> 20.035
C62: 2 | D62: 10 | J62: 20 | L62: 1
D63: =TIME(D62,E62,F62) -> 0.4166666667 | E63: =ABS(D63-D61) -> 0.08333333333 | J63: =J62+L62/60 -> 20.01666667 | K63: =ABS(J63-J61) -> 0.01833333333
J64: 入力禁止
C65: 求める比例部分 | D65: 8 | E65: 45 | F65: 0 | J65: =K67 -> 20 | L65: =M67 -> 1.7
D67: =TIME(D65,E65,F65) -> 0.3645833333 | E67: =ABS(D67-D61) -> 0.03125 | I67: =K63*E67/E63 -> 0.006875 | J67: =IF(J63-J61>0,J61+I67,J61-I67) -> 20.028125 | K67: =ROUNDDOWN(J67,0) -> 20 | L67: =(J67-K67)*60 -> 1.6875 | M67: =ROUND(L67,1) -> 1.7

Sheet 計（計画）
C1: １．太陽観測計画 | E1: 入力禁止
C2: 正中時を求める | D2: =計画!D2 -> 11 | E2: 月 | G2: =計画!G2 -> 9 | H2: 日
C3: １２時の概経度 | D3: =計画!D3 -> 32 | E3: 度 | G3: =計画!G3 -> 50 | H3: 分 | K3: 符号
C4: =D3+G3/60 -> 32.83333333 | D4: =C4/15 -> 2.188888889 | E4: =ROUNDDOWN(D4,0) -> 2 | G4: =D4-E4 -> 0.1888888889 | H4: =G4*60 -> 11.33333333 | I4: =ROUNDDOWN(H4,0) -> 11 | J4: =H4-I4 -> 0.3333333333 | K4: =J4*60 -> 20
D5: 12 | E5: 時 | G5: 0 | H5: 分 | I5: 0 | J5: 秒 | K5: FALSE | L5: =TIME(D5,G5,I5) -> 0.5
D6: 12 | E6: 時 | G6: 0 | H6: 分 | I6: 0 | J6: 秒 | K6: 24-Ｅ◎ | L6: =TIME(D6,G6,I6) -> 0.5
C7: Ｅ◎（Ｕ１２時） | D7: =計画!D7 -> 12 | E7: 時 | G7: =計画!G7 -> 16 | H7: 分 | I7: =計画!I7 -> 12 | J7: 秒 | K7: =L5+L6-L7 -> 0.48875 | L7: =TIME(D7,G7,I7) -> 0.51125
C8: １２時の概経度 | D8: =E4 -> 2 | G8: =I4 -> 11 | H8: 分 | I8: =K4 -> 20 | J8: 秒 | K8: TRUE | L8: =TIME(D8,G8,I8) -> 0.0912037037
C9: 船内使用時 | D9: =計画!D9 -> 2 | E9: 時 | G9: =計画!G9 -> 0 | H9: 分 | K9: =IF(K8,K7-L8,K7+L8) -> 0.3975462963 | L9: =TIME(D9,G9,0) -> 0.08333333333
K10: =IF(K8,K9+L9,K9-L9) -> 0.4808796296 | L10: =ABS(K10) -> 0.4808796296
C12: 太陽子午線正中時 | D12: =HOUR(L10) -> 11 | E12: 時 | G12: =MINUTE(L10) -> 32 | H12: 分 | I12: 頃 | K12: TRUE
E16: 入力禁止
C17: B.推測位置を求める
C18: 天測位置決定用図 | D18: =計画!D18 -> 11 | E18: 月 | G18: =計画!G18 -> 9 | H18: 日
C19: による | D19: =計画!D19 -> 9 | E19: 時 | G19: =計画!G19 -> 30 | H19: 分
C21: 出発位置 緯度 | D21: =計画!D21 -> 32 | E21: 度 | G21: =計画!G21 -> 23 | H21: 分 | K21: 符号
C22: 経度 | D22: =計画!D22 -> 32 | E22: 度 | G22: =計画!G22 -> 49 | H22: 分 | K22: 符号
C24: 変緯 | D24: =計画!D24 -> 0 | E24: 度 | G24: =計画!G24 -> 1.8 | H24: 分 | K24: 符号
C25: 変経 | D25: =計画!D25 -> 0 | E25: 度 | G25: =計画!G25 -> 20.3 | H25: 分 | K25: 符号
C26: 到着
C27: 推測位置 緯度 | D27: =計算!E40 -> 32 | E27: 度 | G27: =計算!F40 -> 24.8 | H27: 分 | I27: =計算!I40 -> S | J27: 符号
C28: 経度 | D28: =計算!K40 -> 32 | E28: 度 | G28: =計算!L40 -> 28.7 | H28: 分 | I28: =計算!M40 -> Ｅ | J28: 符号
D32: 入力禁止
C33: 2.針路（方位）改正
E34: 符号 | J34: 符号
C35: コンパス針路 | D35: =計画!D36 -> 29 | G35: 真針路 | I35: =計画!I36 -> 170
C36: 自差 | D36: =計画!D37 -> 2 | E36: =計画!E37 -> Ｗ | G36: 自差 | I36: =計画!I37 -> 1 | J36: =計画!J37 -> Ｅ
C37: 偏差 | D37: =計画!D38 -> 6 | E37: =計画!E38 -> Ｅ | G37: 偏差 | I37: =計画!I38 -> 3 | J37: =計画!J38 -> Ｗ
C39: 真針路 | D39: =計算!D53 -> 33 | G39: コンパス針路 | I39: =計算!J53 -> 172
C43: 入力禁止
C44: 3.恒星観測計画 | D44: （索星）
C45: 星（恒星）の天測計画 | D45: 年 | E45: 月 | F45: 日 | H45: クロノメ－タ－ | I45: 時 | J45: 分 | K45: 秒
C46: 観測日 | D46: =計画!D48 -> 0 | E46: =計画!E48 -> 10 | F46: =計画!F48 -> 12 | H46: 世界時（ＵＴ） | I46: =計画!I48 -> 17 | J46: =計画!J48 -> 40 | K46: =計画!K48 -> 20
E47: 度 | F47: 分 | G47: 符号 | I47: 度 | J47: 分 | K47: 符号
C48: 推測位置 | D48: 推測緯度 | E48: =計画!E50 -> 25 | F48: =計画!F50 -> 10 | G48: =計画!G50 -> N | H48: 推測経度 | I48: =計画!I50 -> 158 | J48: =計画!J50 -> 48 | K48: =計画!K50 -> E
D50: 例 | G50: 度 | H50: 分
C51: ＡＩＲ ＮＡＶＩＧＡＴＩＯＮ | D51: a表より | E51: 年，月 | G51: =計画!G53 -> 10 | H51: =計画!H53 -> 2 | I51: =G51+H51/60 -> 10.03333333
C52: ＴＡＢＬＥ4より | D52: ｂ表より | E52: 日、時 | G52: =計画!G54 -> 266 | H52: =計画!H54 -> 32 | I52: =G52+H52/60 -> 266.5333333
D53: ｃ表より | E53: 分、秒 | G53: =計画!G55 -> 10 | H53: =計画!H55 -> 7 | I53: =G53+H53/60 -> 10.11666667
D54: GHA | G54: =J54 -> 286 | H54: =J55*60 -> 41 | I54: =I51+I52+I53 -> 286.6833333 | J54: =ROUNDDOWN(I55,0) -> 286
C55: ｗのときチェック入れる | D55: 加算 | E55: 減算 | I55: =IF(I54>=360,I54-360,I54) -> 286.6833333 | J55: =I55-J54 -> 0.6833333333
C56: （E +, W -） | D56: 推測経度 | E56: =I48 -> 158 | G56: =計画!G58 -> 158 | H56: =計画!H58 -> 48 | I56: =G56+H56/60 -> 158.8 | J56: FALSE
D57: LHA | G57: =I58 -> 85 | H57: =J58 -> 29 | I57: =IF(J56,I54-I56,I54+I56) -> 445.4833333 | J57: =IF(I57>=360,I57-360,I57) -> 85.48333333
I58: =ROUNDDOWN(J57,0) -> 85 | J58: =(J57-I58)*60 -> 29
C59: 天測する星を見つける | I59: =ROUND(J57,1) -> 85.5
C60: ＡＩＲ ＮＡＶＩＧＡＴＩＯＮ | D60: 7個の | E60: 恒星の方位 | G60: と高度が判明
C61: ＳＩＧＨＴ ＲＥＤＵＣＴＩＯＮ | E61: =E48 -> 25 | G61: =G48 -> N
C62: ＴＡＢＬＥＳを利用する | E62: ＬＨＡ | G62: =ROUND(I59,0) -> 86

Sheet 計（推測）
B1: 90度式に変換 | D1: 入力禁止
B2: 針路・方位
B3: 360度式 | C3: =推測!C3 -> 250 | E3: =IF(C3<90,"Ｎ","") -> 
C5: 符号 | D5: 度 | E5: 符号
B6: ９０度式 | C6: =IF(D6<90,"Ｎ","") ->  | D6: =IF(C3<90,C3,"") ->  | E6: =IF(C3>180,"Ｗ","Ｅ") -> Ｗ
C7: =IF(D7<90,"Ｓ","") ->  | D7: =IF(C3>90,E7,"") ->  | E7: =IF(C3<180,180-C3,"") -> 
C8: =IF(D8<90,"Ｓ","") -> Ｓ | D8: =IF(E8>0,E8,"") -> 70 | E8: =IF(270>C3,C3-180,"") -> 70
C9: =IF(D9<90,"Ｎ","") ->  | D9: =E9 ->  | E9: =IF(C3>270,360-C3,"") -> 
B12: 推測位置を求める | D12: 入力禁止
B13: 中分緯度航法 | M13: =IF(M14,"Ｎ","Ｓ") -> Ｎ
C14: =推測!C14 -> 10 | D14: 月 | E14: =推測!E14 -> 28 | F14: 日 | I14: =IF(I15,"Ｎ","Ｓ") -> Ｓ | K14: ｓｉｎ | L14: ｃｏｓ | M14: =IF(I15,1,-2) -> -2
C15: =推測!C15 -> 9 | D15: 時 | E15: =推測!E15 -> 0 | F15: 分 | I15: FALSE | J15: =RADIANS(E17) -> 1.221730476 | K15: =SIN(J15) -> 0.9396926208 | L15: =COS(J15) -> 0.3420201433 | M15: =IF(M16,"Ｅ","Ｗ") -> Ｅ
C16: 符号 | G16: 符号 | I16: =IF(I17,"Ｅ","Ｗ") -> Ｗ | M16: =IF(I17,1,-2) -> -2
B17: 針路 | E17: =推測!E17 -> 70 | F17: 度 | I17: FALSE | J17: Ｄｌ | K17: Ｄｅｐ | L17: ｌ+ｌ/2 | N17: cosｍｉｄｌ
B18: 航程 | C18: =推測!C18 -> 53 | D18: 海里 | J18: =(C18*L15)/60 -> 0.3021177933 | K18: =C18*K15 -> 49.8037089 | L18: =(K21+M21)/2 -> 27.0989411 | M18: =RADIANS(L18) -> 0.4729657461 | N18: =COS(M18) -> 0.8902212235
C20: 度 | E20: 分 | G20: 符号 | I20: =IF(I21,"Ｎ","Ｓ") -> Ｎ | L20: =I20 -> Ｎ | M20: 符号
B21: 出発緯度 | C21: =推測!C21 -> 27 | E21: =推測!E21 -> 15 | I21: TRUE | K21: =C21+E21/60 -> 27.25 | L21: =IF(I21,1,-2) -> 1 | M21: =IF(M14-L21=0,K21+J18,K21-J18) -> 26.94788221
B22: 出発経度 | C22: =推測!C22 -> 138 | E22: =推測!E22 -> 40 | I22: =IF(I23,"Ｅ","Ｗ") -> Ｅ | K22: =C22+E22/60 -> 138.6666667 | L22: =I22 -> Ｅ | M22: =IF(M16-L23=0,K22+K24,K22-K24) -> 137.7342447
I23: TRUE | K23: ＤＬ | L23: =IF(I23,1,-2) -> 1
C24: 度 | E24: 分 | G24: 符号 | K24: =(K18/N18)/60 -> 0.9324219566
B25: 到達緯度 | C25: =K25 -> 26 | E25: =M25 -> 56.9 | G25: =I20 -> Ｎ | K25: =ROUNDDOWN(M21,0) -> 26 | L25: =(M21-K25)*60 -> 56.8729324 | M25: =ROUND(L25,1) -> 56.9
B26: 到達経度 | C26: =K26 -> 137 | E26: =M26 -> 44.1 | G26: =I22 -> Ｅ | K26: =ROUNDDOWN(M22,0) -> 137 | L26: =(M22-K26)*60 -> 44.0546826 | M26: =ROUND(L26,1) -> 44.1

Sheet 計（正中時）
B1: 入力禁止
B2: 正中時を求める | C2: =正中時!C2 -> 11 | D2: 月 | E2: =正中時!E2 -> 9 | F2: 日
B3: １２時の概経度 | C3: =正中時!C3 -> 32 | D3: 度 | E3: =正中時!E3 -> 50 | F3: 分 | I3: 符号
B4: =C3+E3/60 -> 32.83333333 | C4: =B4/15 -> 2.188888889 | D4: =ROUNDDOWN(C4,0) -> 2 | E4: =C4-D4 -> 0.1888888889 | F4: =E4*60 -> 11.33333333 | G4: =ROUNDDOWN(F4,0) -> 11 | H4: =F4-G4 -> 0.3333333333 | I4: =H4*60 -> 20
C5: 12 | D5: 時 | E5: 0 | F5: 分 | G5: 0 | H5: 秒 | I5: FALSE | J5: =TIME(C5,E5,G5) -> 0.5
C6: 12 | D6: 時 | E6: 0 | F6: 分 | G6: 0 | H6: 秒 | I6: 24-Ｅ◎ | J6: =TIME(C6,E6,G6) -> 0.5
B7: Ｅ◎（Ｕ１２時） | C7: =正中時!C7 -> 12 | D7: 時 | E7: =正中時!E7 -> 16 | F7: 分 | G7: =正中時!G7 -> 12 | H7: 秒 | I7: =J5+J6-J7 -> 0.48875 | J7: =TIME(C7,E7,G7) -> 0.51125
B8: １２時の概経度 | C8: =D4 -> 2 | E8: =G4 -> 11 | F8: 分 | G8: =I4 -> 20 | H8: 秒 | I8: TRUE | J8: =TIME(C8,E8,G8) -> 0.0912037037
B9: 船内使用時 | C9: =正中時!C9 -> 2 | D9: 時 | E9: =正中時!E9 -> 0 | F9: 分 | I9: =IF(I8,I7-J8,I7+J8) -> 0.3975462963 | J9: =TIME(C9,E9,0) -> 0.08333333333
I10: =IF(I8,I9+J9,I9-J9) -> 0.4808796296 | J10: =ABS(I10) -> 0.4808796296
B11: 太陽子午線正中時 | C11: =HOUR(J10) -> 11 | D11: 時 | E11: =MINUTE(J10) -> 32 | F11: 分 | G11: 頃 | I11: TRUE
B16: 太陽子午線高度緯度法 | D16: 入力禁止
B18: 観測日 | C18: =正中時!C18 -> 11 | D18: 月 | E18: =正中時!E18 -> 9 | F18: 日 | H18: 眼高 | I18: =正中時!I18 -> 3 | J18: ｍ
H19: ログ指値 | I19: =正中時!I19 -> 0
G20: 気温 | H20: =正中時!H20 -> 30 | I20: 水温 | J20: =正中時!J20 -> 28
B22: クロノメ－タ－ | C22: =正中時!C22 -> 0 | D22: 時 | E22: =正中時!E22 -> 0 | F22: 分 | G22: =正中時!G22 -> 0 | H22: 秒 | I22: =TIME(C22,E22,G22) -> 0
B23: エラ－ | E23: =正中時!E23 -> 0 | G23: =正中時!G23 -> 0 | I23: =TIME(0,E23,G23) -> 0
B24: Ｕ | C24: =正中時!C24 -> 0 | E24: =正中時!E24 -> 0 | G24: =正中時!G24 -> 0 | I24: =I22+I23 -> 0
G25: 符号 | I25: TRUE
B26: 推測緯度（ｌ） | C26: =正中時!C26 -> 36 | D26: 度 | E26: =正中時!E26 -> 26.7 | F26: 分 | I26: =IF(I25,"Ｎ","Ｓ") -> Ｎ
B27: 経度 | C27: =正中時!C27 -> 155 | D27: 度 | E27: =正中時!E27 -> 30.2 | F27: 分 | I27: =IF(I25,1,-2) -> 1 | J27: =C26+E26/60 -> 36.445
G28: 符号 | I28: =IF(I29,"Ｎ","Ｓ") -> Ｓ
B29: 天測暦 → 赤緯（ｄ） | C29: =正中時!C29 -> 13 | D29: 度 | E29: =正中時!E29 -> 1 | F29: 分 | I29: FALSE
G30: 符号
D31: 度 | F31: 分 | G31: TRUE | H31: =IF(G31,"Ｅ","Ｗ") -> Ｅ | I31: ｄ
B32: 観測高度 | C32: =正中時!C32 -> 40 | E32: =正中時!E32 -> 29 | G32: =C32+E32/60 -> 40.48333333 | H32: =IF(I29,1,-2) -> -2 | I32: =C29+E29/60 -> 13.01666667 | J32: =I32*-1 -> -13.01666667
B33: 器差 | E33: =正中時!E33 -> -2.5 | G33: =C33+E33/60 -> -0.04166666667 | H33: =G32+G33 -> 40.44166667
C34: =G34 -> 40 | E34: =H34 -> 26.5 | G34: =ROUNDDOWN(H33,0) -> 40 | H34: =(H33-G34)*60 -> 26.5
B35: 改正1 | C35: 0 | E35: =C83 -> 11.6 | G35: =C35+E35/60 -> 0.1933333333
B36: 改正2 | C36: 0 | E36: =H69 -> 0.3 | G36: =C36+E36/60 -> 0.005
B37: 改正3 | C37: 0 | E37: =J72 -> 0.4 | G37: =C37+E37/60 -> 0.006666666667 | H37: =H33+G35+G36+G37 -> 40.64666667
B38: 真高度 （ａ） | C38: =G38 -> 40 | E38: =H38 -> 38.8 | G38: =ROUNDDOWN(H37,0) -> 40 | H38: =(H37-G38)*60 -> 38.8
C39: 90 | G39: =C39-H37 -> 49.35333333 | H39: =ROUNDDOWN(G39,0) -> 49
B40: ９０－ａ | C40: =H39 -> 49 | E40: =G40 -> 21.2 | G40: =(G39-H39)*60 -> 21.2 | I40: ｌ-ｄ | J40: =J27-I32 -> 23.42833333
F41: ｌ、ｄ異名 | G41: =IF(I41<0,G39+J32,1) -> 36.33666667 | H41: ｌ、ｄ同名 | I41: =IF(I27-H32=0,1,-1) -> -1
F42: =ROUNDDOWN(G41,0) -> 36 | G42: =(G41-F42)*60 -> 20.2
F43: ｌ＞ｄ | G43: =IF(J40>0,I32+G39,I32-G39) -> 62.37 | H43: =ROUNDDOWN(G43,0) -> 62 | I43: =(G43-H43)*60 -> 22.2
F44: ｌ＜ｄ
B45: 正中時緯度（Ａ） | C45: =IF(I41<0,0,H43) -> 0 | E45: =IF(I41<0,0,I43) -> 0 | G45: =IF(I41<0,"",I26) ->  | H45: ｌ、ｄ同名の時 | I45: =C45+E45/60 -> 0
B46: 正中時緯度（Ａ） | C46: =IF(I41<0,F42,0) -> 36 | E46: =IF(I41<0,G42,0) -> 20.2 | G46: =IF(I41<0,I26,"") -> Ｎ | H46: ｌ、ｄ異名の時 | I46: =C46+E46/60 -> 36.33666667 | J46: =I45+I46 -> 36.33666667
B48: 修正差（Ｉ）北半球の時 | C48: =IF(E46>100,"ミスがあるか、流されています","") ->  | E48: =IF(I27>0,I49,0) -> 6.5 | F48: =IF(I27>0,G48,"") -> Ｓ | G48: =IF(J48>0,"Ｓ","Ｎ") -> Ｓ | I48: ｌ－ａ | J48: =J27-J46 -> 0.1083333333
B49: 修正差（Ｉ）南半球の時 | C49: =IF(E49>100,"ミスがあるか、流されています","") ->  | E49: =IF(I27<0,I49,0) -> 0 | F49: =IF(H32<0,G49,"") -> Ｎ | G49: =IF(J48>0,"Ｎ","Ｓ") -> Ｎ | I49: =J49*60 -> 6.5 | J49: =ABS(J48) -> 0.1083333333
B53: 改正1 | G53: 改正２ | H53: 太陽 | J53: 改正3 | K53: 太陽と | L53: 星
B54: 太陽 | C54: 眼高 | E54: 眼高 | G54: 月 | H54: 下辺 | J54: 気温- | K54: 水温＝ | L54: 差
B55: 高度 | C55: 2ｍ | D55: 高度 | E55: 3ｍ | G55: 1 | H55: 0.5 | J55: ℃差 | K55: + | L55: -
B56: 15 | C56: 9.8 | D56: 15 | E56: 9.3 | G56: 2 | H56: 0.5 | J56: 0 | K56: 0 | L56: 0
B57: 16 | C57: 10.1 | D57: 16 | E57: 9.5 | G57: 3 | H57: 0.4 | J57: 1 | K57: 0.2 | L57: -0.2
B58: 17 | C58: 10.3 | D58: 17 | E58: 9.7 | G58: 4 | H58: 0.2 | J58: 2 | K58: 0.4 | L58: -0.4
B59: 18 | C59: 10.4 | D59: 18 | E59: 9.9 | G59: 5 | H59: 0.1 | J59: 3 | K59: 0.6 | L59: -0.6
B60: 20 | C60: 10.7 | D60: 20 | E60: 10.2 | G60: 6 | H60: 0 | J60: 4 | K60: 0.8 | L60: -0.8
B61: 22 | C61: 11 | D61: 22 | E61: 10.4 | G61: 7 | H61: 0 | J61: 5 | K61: 1 | L61: -1
B62: 24 | C62: 11.2 | D62: 24 | E62: 10.7 | G62: 8 | H62: 0.1 | J62: 6 | K62: 1.2 | L62: -1.2
B63: 26 | C63: 11.4 | D63: 26 | E63: 10.8 | G63: 9 | H63: 0.2 | J63: 7 | K63: 1.4 | L63: -1.4
B64: 28 | C64: 11.6 | D64: 28 | E64: 11 | G64: 10 | H64: 0.3 | J64: 8 | K64: 1.6 | L64: -1.6
B65: 30 | C65: 11.7 | D65: 30 | E65: 11.1 | G65: 11 | H65: 0.3 | J65: 9 | K65: 1.8 | L65: -1.8
B66: 32 | C66: 11.8 | D66: 32 | E66: 11.3 | G66: 12 | H66: 0.5 | J66: 10 | K66: 2 | L66: -2
B67: 34 | C67: 11.9 | D67: 34 | E67: 11.4 | J67: 11 | K67: 2.2 | L67: -2.2
B68: 36 | C68: 12 | D68: 36 | E68: 11.5 | G68: =C18+E18/30 -> 11.3 | J68: 12 | K68: 2.4 | L68: -2.4
B69: 38 | C69: 12.1 | D69: 38 | E69: 11.6 | G69: =ROUND(G68,0) -> 11 | H69: =VLOOKUP(G69,G55:H66,2,1) -> 0.3 | J69: 13 | K69: 2.6 | L69: -2.6
B70: 40 | C70: 12.2 | D70: 40 | E70: 11.6 | J70: 14 | K70: 2.8 | L70: -2.8
B71: 45 | C71: 12.4 | D71: 45 | E71: 11.8 | J71: =ABS(J73) -> 2 | K71: =VLOOKUP(J71,J56:L70,2,1) -> 0.4 | L71: =VLOOKUP(J71,J56:L70,3,1) -> -0.4
B72: 50 | C72: 12.5 | D72: 50 | E72: 12 | J72: =IF(I71>=0,K71,L71) -> 0.4
B73: 55 | C73: 12.6 | D73: 55 | E73: 12.1 | J73: =H20-J20 -> 2
B74: 60 | C74: 12.8 | D74: 60 | E74: 12.2
B75: 65 | C75: 12.9 | D75: 65 | E75: 12.3
B76: 70 | C76: 12.9 | D76: 70 | E76: 12.4
B77: 75 | C77: 13 | D77: 75 | E77: 12.5
B78: 80 | C78: 13.1 | D78: 80 | E78: 12.5
B79: 85 | C79: 13.2 | D79: 85 | E79: 12.6
B80: 90 | C80: 13.2 | D80: 90 | E80: 12.7
B82: =H33 -> 40.44166667 | C82: =VLOOKUP(B82,B56:C80,2,1) -> 12.2 | D82: =H33 -> 40.44166667 | E82: =VLOOKUP(D82,D56:E80,2,1) -> 11.6
C83: =IF(I18=3,E82,C82) -> 11.6

Sheet 計（太陽）
B1: 入力禁止 | N1: ｈ＜0 | O1: 時間ｈ | P1: ｈ | Q1: ｍ | R1: ｓ
B2: 天測太陽2 | F2: （ | G2: ＫＨメソッド | H2: ） | N2: =IF(K18<0,K18+1,K18) -> 1.108032407 | P2: =HOUR(N2) -> 2 | Q2: =MINUTE(N2) -> 35 | R2: =SECOND(N2) -> 34
C3: 1 | D3: 回目 | E3: 天測
B4: 観測天体 | C4: （太陽1、 | D4: 恒星2） | E4: 1 | P4: =P2*15 -> 30 | Q4: =Q2*15 -> 525 | R4: =R2*15 -> 510
P5: =Q6+P4 -> 38 | Q5: =Q4/60 -> 8.75 | R5: =R4/60 -> 8.5
B6: 観測日 | C6: =太陽!C6 -> 2 | D6: 月 | E6: =太陽!E6 -> 10 | F6: 日 | Q6: =INT(Q5) -> 8 | R6: =ROUND(R5,1) -> 8.5
B7: 観測時間 | C7: =太陽!C7 -> 14 | D7: 時 | E7: =太陽!E7 -> 50 | F7: 分頃 | J7: ｌ | K7: =IF(K10,"Ｎ","Ｓ") -> Ｎ | Q7: =Q5-Q6 -> 0.75
B8: 観測高度 | C8: =太陽!C16 -> 33 | D8: 度 | E8: =太陽!E16 -> 34 | F8: 分 | J8: Ｌｏｎｇ | K8: TRUE | Q8: =Q7*60 -> 45
B9: 器差 | E9: =太陽!E17 -> 0 | G9: 符号 | H9: =恒星!G10 -> 0 | J9: ｌ異符号 | K9: =IF(K10,"Ｓ","Ｎ") -> Ｓ | N9: ｈ(D) | P9: 度 | Q9: 分
B10: 観測時 緯度 | C10: =太陽!C9 -> 27 | D10: 度 | E10: =太陽!E9 -> 15 | F10: 分 | J10: ｌ’ | K10: TRUE | L10: =IF(K10,1,-2) -> 1 | M10: ＤＬ | N10: =P10+Q10/60 -> 38.89166667 | O10: 時角 ｈ | P10: =P5 -> 38 | Q10: =Q8+R6 -> 53.5
B11: 推測位置 経度 | C11: =太陽!C10 -> 138 | D11: 度 | E11: =太陽!E10 -> 40 | F11: 分 | J11: ｄ’ | K11: FALSE | L11: =IF(K11,1,-2) -> -2 | M11: =TIME(P22,Q22,R22) -> 0.3851851852
B12: クロノメ－タ－ | C12: =太陽!C12 -> 5 | D12: 時 | E12: =太陽!E12 -> 23 | F12: 分 | G12: =太陽!G12 -> 46 | H12: 秒 | J12: ＣＴ(S) | K12: =TIME(C12,E12,G12) -> 0.224837963 | P12: 度 | Q12: 分
B13: エラ－ | E13: =太陽!E13 -> 11 | F13: 分 | G13: =太陽!G13 -> 25 | H13: 秒 | J13: ｅｒｏｒ(S) | K13: =TIME(C13,E13,G13) -> 0.007928240741 | M13: d,l同符号 | O13: 角度（ＤＬ） | P13: =C11 -> 138 | Q13: =E11 -> 40 | R13: =P13+Q13/60 -> 138.6666667 | S13: =R13/15 -> 9.244444444
C14: 進む | E14: 遅れる | J14: TRUE | K14: =IF(J14,K12+K13,K12-K13) -> 0.2327662037 | M14: =SIN(L19) -> 0.2528293174 | R14: =ROUNDDOWN(S13,0) -> 9 | S14: =S13-R14 -> 0.2444444444
B15: 天測暦、E◎ｏｒE* | C15: =太陽!C19 -> 11 | D15: 時 | E15: =太陽!E19 -> 45 | F15: 分 | G15: =太陽!G19 -> 43 | H15: 秒 | J15: E*(S) | K15: =TIME(C15,E15,G15) -> 0.4900810185 | M15: d,l異符号 | R15: =S14*60 -> 14.66666667 | S15: =ROUNDDOWN(R15,0) -> 14
B16: 赤緯（ｄ） | C16: =太陽!C20 -> 14 | D16: 度 | E16: =太陽!E20 -> 38.7 | F16: 分 | J16: ＧＨＡ(S) | K16: =K15+K14 -> 0.7228472222 | M16: =M14*-1 -> -0.2528293174 | R16: =R15-S15 -> 0.6666666667 | S16: =R16*60 -> 40
B17: 眼高 | C17: =太陽!C21 -> 3 | D17: ｍ | G17: 符号 | J17: ＤＬ(S) | K17: =IF(K8,M11,M11*-1) -> 0.3851851852 | L17: ｒａｄｉａｎ | M17: ｓｉｎ | N17: ｃｏｓ | P17: ｈ | Q17: ｍ | R17: ｓ
B18: ログ指示値 | C18: =太陽!C22 -> 217.3 | D18: 海里 | J18: ｈ(S) | K18: =K16+K17 -> 1.108032407 | L18: =RADIANS(N10) -> 0.6787876349 | M18: =SIN(L18) -> 0.6278498601 | N18: =COS(L18) -> 0.7783344738
B19: 気温 | C19: =太陽!C23 -> 20 | D19: 度Ｃ | J19: ｄ | K19: =C16+E16/60 -> 14.645 | L19: =RADIANS(K19) -> 0.255603469 | M19: =IF(L10-L11=0,M14,M16) -> -0.2528293174 | N19: =COS(L19) -> 0.9675108972
B20: 水温 | C20: =太陽!C24 -> 20 | D20: 度Ｃ | J20: ｌ | K20: =C10+E10/60 -> 27.25 | L20: =RADIANS(K20) -> 0.4756022212 | M20: =SIN(L20) -> 0.4578739151 | N20: =COS(L20) -> 0.8890171415
B21: 天体概方位 | C21: =太陽!C25 -> N | D21: =太陽!D25 -> 58 | E21: 度 | F21: =太陽!F25 -> E | G21: 符号 | J21: ｌ、ｄ同異 | K21: =M20*M19+N20*N19*N18 -> 0.5537078176
J22: Ａｃ | K22: =ASIN(K21) -> 0.5868103864 | L22: =RADIANS(K23) -> 0.5868103864 | N22: =COS(L22) -> 0.832711026 | O22: 時間（ＤＬ） | P22: =R14 -> 9 | Q22: =S15 -> 14 | R22: =IF(S16>=60,S16-60,S16) -> 40
J23: ｄｅｇ | K23: =DEGREES(K22) -> 33.62175851 | L23: Ｅ | M23: =M14/M20 -> 0.5521810898 | N23: =ASIN(M23) -> 0.5849780591
B24: 天測結果 | J24: ＡＢＳｄｅｇ | K24: =ABS(K23) -> 33.62175851
B25: 修正差（I） | C25: =M28 -> 11.5 | D25: =IF(C25>100,"ミスがあるか、流されているので注意！","") ->  | K25: =ROUNDDOWN(K24,0) -> 33 | L25: =(K24-K25)*60 -> 37.30551078 | M25: =ROUND(L25,1) -> 37.3 | O25: ａｎｏｔｈｅｒ | P25: =IF(L10-L11=0,"",K9) -> Ｓ
O26: ｓａｍｅ
C27: 符号 | J27: Ａｏ | K27: =C8+E8/60 -> 33.56666667 | L27: Ｉ | M27: =(K33-K24)*60 -> 11.49448922 | O27: ｄ-ｌ＞0 | P27: ｄ＜ｌ
C28: =L33 -> Ｓ | D28: 度 | E28: 符号 | J28: ＩＥ | K28: =恒星!E9/60 -> 0.05 | M28: =ROUND(M27,1) -> 11.5 | O28: =K19-K20 -> -12.605
B29: 方位角（Z） | C29: =L34 ->  | D29: =M33 -> 47 | E29: =N33 -> Ｗ | J29: Ａｓ | K29: =K27+K28 -> 33.61666667 | L29: ｚ | M29: =M18*N19/N22 -> 0.7294866557 | O29: =IF(O28>0,'計（太陽）'!K7,"") ->  | P29: Ｅ-Ａｃ | Q29: Ｅ＜Ａｃ
C30: =L35 ->  | J30: 1 | K30: =D59/60 -> 0.1883333333 | L30: =D59 -> 11.3 | M30: =ASIN(M29) -> 0.8175711412 | P30: =N23-K29 -> -33.03168861
J31: 2 | K31: =G59/60 -> 0.008333333333 | L31: =G59 -> 0.5 | M31: =DEGREES(M30) -> 46.84337584 | O31: =IF(L10-L11=0,O32,"") ->  | P31: =IF(P30>0,K7,K9) -> Ｓ
J32: 3 | K32: =L59/60 -> 0 | L32: =L59 -> 0 | M32: =ABS(M31) -> 46.84337584 | O32: =IF(O28<0,P31,"") -> Ｓ
J33: Ａｔ | K33: =K29+K30+K31+K32 -> 33.81333333 | L33: =IF(L10-L11=0,"",P25) -> Ｓ | M33: =ROUND(M32,0) -> 47 | N33: =IF(N10>180,"Ｅ","Ｗ") -> Ｗ | O33: Ａｔ | P33: =ROUNDDOWN(K33,0) -> 33 | Q33: =(K33-P33)*60 -> 48.8
L34: =IF(L10-L11=0,O29,"") ->  | O34: Ac | P34: =K25 -> 33 | Q34: =M25 -> 37.3
B35: 太陽の赤緯ｄ | D35: 入力禁止 | L35: =O31 ->  | O35: I | Q35: =M28 -> 11.5
B36: 比例部分の計算 | G36: ｄ
C37: 時 | D37: 分 | E37: 秒 | G37: 度 | I37: 分 | L37: =IF(K10+K11=0,O29,"") -> 
B38: 1 | C38: =太陽!C42 -> 8 | D38: =太陽!D42 -> 0 | E38: =太陽!E42 -> 0 | G38: =太陽!G42 -> 20 | I38: =太陽!I42 -> 14.5
C39: =TIME(C38,D38,E38) -> 0.3333333333 | G39: =G38+I38/60 -> 20.24166667
B40: 2 | C40: =太陽!D44 -> 0 | E40: =太陽!E44 -> 0 | G40: =太陽!G44 -> 20 | I40: =太陽!I44 -> 13.4
C41: =TIME(C40,D40,E40) -> 0 | D41: =ABS(C41-C39) -> 0.3333333333 | G41: =G40+I40/60 -> 20.22333333 | H41: =ABS(G41-G39) -> 0.01833333333
B42: 求める比例部分 | C42: =太陽!C47 -> 9 | D42: =太陽!D47 -> 23 | E42: =太陽!E47 -> 0 | G42: =太陽!G47 -> 20 | I42: =太陽!I47 -> 13.7
C43: =TIME(C42,D42,E42) -> 0.3909722222 | D43: =ABS(C43-C39) -> 0.05763888889 | F43: =H41*D43/D41 -> 0.003170138889 | G43: =IF(G41-G39>0,G39+F43,G39-F43) -> 20.23849653 | H43: =ROUNDDOWN(G43,0) -> 20 | I43: =(G43-H43)*60 -> 14.30979167 | J43: =ROUND(I43,1) -> 14.3
B47: 太陽のE◎ | D47: 入力禁止
B48: 比例部分の計算
C49: 時 | D49: 分 | E49: 秒 | G49: 時 | H49: 分 | I49: 秒
B50: 1 | C50: =太陽!C56 -> 4 | D50: =太陽!D56 -> 0 | E50: =太陽!E56 -> 0 | G50: =太陽!G56 -> 12 | H50: =太陽!H56 -> 2 | I50: =太陽!I56 -> 32
C51: =TIME(C50,D50,E50) -> 0.1666666667 | G51: =TIME(G50,H50,I50) -> 0.5017592593
B52: 2 | C52: =太陽!C58 -> 6 | D52: =太陽!D58 -> 0 | E52: =太陽!E58 -> 0 | G52: =太陽!G58 -> 12 | H52: =太陽!H58 -> 2 | I52: =太陽!I58 -> 33
C53: =TIME(C52,D52,E52) -> 0.25 | D53: =ABS(C53-C51) -> 0.08333333333 | G53: =TIME(G52,H52,I52) -> 0.5017708333 | H53: =ABS(G53-G51) -> 1.157407407e-05
B54: 求める比例部分 | C54: =太陽!C62 -> 4 | D54: =太陽!D62 -> 50 | E54: =太陽!E62 -> 0 | G54: =太陽!G62 -> 12 | H54: =太陽!H62 -> 2 | I54: =太陽!I62 -> 32
C55: =TIME(C54,D54,E54) -> 0.2013888889 | D55: =ABS(C55-C51) -> 0.03472222222 | F55: =D55*H53/D53 -> 4.822530864e-06 | G55: =IF(G53-G51>0,G51+F55,G51-F55) -> 0.5017640818
A59: 改正1 | B59: 入力禁止 | C59: 改正値 | D59: =B88 -> 11.3 | F59: 改正値 | G59: =G74 -> 0.5 | H59: 入力禁止 | J59: 入力禁止 | K59: 改正値 | L59: =K79 -> 0
A60: 太陽 | B60: 眼高 | D60: 眼高 | F60: 改正２ | G60: 太陽 | J60: 改正3 | K60: 太陽と | L60: 星
A61: 高度 | B61: 2ｍ | C61: 高度 | D61: 3ｍ | F61: 月 | G61: 下辺 | J61: 気温- | K61: 水温＝ | L61: 差
A62: 15 | B62: 9.8 | C62: 15 | D62: 9.3 | F62: 1 | G62: 0.5 | J62: ℃差 | K62: + | L62: -
A63: 16 | B63: 10.1 | C63: 16 | D63: 9.5 | F63: 2 | G63: 0.5 | J63: 0 | K63: 0 | L63: 0
A64: 17 | B64: 10.3 | C64: 17 | D64: 9.7 | F64: 3 | G64: 0.4 | J64: 1 | K64: 0.2 | L64: -0.2
A65: 18 | B65: 10.4 | C65: 18 | D65: 9.9 | F65: 4 | G65: 0.2 | J65: 2 | K65: 0.4 | L65: -0.4
A66: 20 | B66: 10.7 | C66: 20 | D66: 10.2 | F66: 5 | G66: 0.1 | J66: 3 | K66: 0.6 | L66: -0.6
A67: 22 | B67: 11 | C67: 22 | D67: 10.4 | F67: 6 | G67: 0 | J67: 4 | K67: 0.8 | L67: -0.8
A68: 24 | B68: 11.2 | C68: 24 | D68: 10.7 | F68: 7 | G68: 0 | J68: 5 | K68: 1 | L68: -1
A69: 26 | B69: 11.4 | C69: 26 | D69: 10.8 | F69: 8 | G69: 0.1 | J69: 6 | K69: 1.2 | L69: -1.2
A70: 28 | B70: 11.6 | C70: 28 | D70: 11 | F70: 9 | G70: 0.2 | J70: 7 | K70: 1.4 | L70: -1.4
A71: 30 | B71: 11.7 | C71: 30 | D71: 11.1 | F71: 10 | G71: 0.3 | J71: 8 | K71: 1.6 | L71: -1.6
A72: 32 | B72: 11.8 | C72: 32 | D72: 11.3 | F72: 11 | G72: 0.3 | J72: 9 | K72: 1.8 | L72: -1.8
A73: 34 | B73: 11.9 | C73: 34 | D73: 11.4 | F73: 12 | G73: 0.5 | J73: 10 | K73: 2 | L73: -2
A74: 36 | B74: 12 | C74: 36 | D74: 11.5 | F74: =C6+E6/30 -> 2.333333333 | G74: =VLOOKUP(F75,F62:G73,2,0) -> 0.5 | J74: 11 | K74: 2.2 | L74: -2.2
A75: 38 | B75: 12.1 | C75: 38 | D75: 11.6 | F75: =ROUND(F74,0) -> 2 | J75: 12 | K75: 2.4 | L75: -2.4
A76: 40 | B76: 12.2 | C76: 40 | D76: 11.6 | J76: 13 | K76: 2.6 | L76: -2.6
A77: 45 | B77: 12.4 | C77: 45 | D77: 11.8 | J77: 14 | K77: 2.8 | L77: -2.8
A78: 50 | B78: 12.5 | C78: 50 | D78: 12 | J78: =ABS(J79) -> 0 | K78: =VLOOKUP(J78,J63:L77,2,1) -> 0 | L78: =VLOOKUP(J78,J63:L77,3,1) -> 0
A79: 55 | B79: 12.6 | C79: 55 | D79: 12.1 | J79: =C19-C20 -> 0 | K79: =IF(J79>0,K78,L78) -> 0
A80: 60 | B80: 12.8 | C80: 60 | D80: 12.2
A81: 65 | B81: 12.9 | C81: 65 | D81: 12.3
A82: 70 | B82: 12.9 | C82: 70 | D82: 12.4
A83: 75 | B83: 13 | C83: 75 | D83: 12.5
A84: 80 | B84: 13.1 | C84: 80 | D84: 12.5
A85: 85 | B85: 13.2 | C85: 85 | D85: 12.6
A86: 90 | B86: 13.2 | C86: 90 | D86: 12.7
A87: =K29 -> 33.61666667 | B87: =VLOOKUP(A87,A62:B86,2,1) -> 11.8 | C87: =K27 -> 33.56666667 | D87: =VLOOKUP(C87,C62:D86,2,1) -> 11.3
B88: =IF(C17=2,B87,D87) -> 11.3

Sheet 計（恒星）
B1: 入力禁止 | N1: ｈ＜0 | O1: 時間ｈ | P1: ｈ | Q1: ｍ | R1: ｓ
B2: 天測恒星 | F2: （ | G2: Ｈメソッド | H2: ） | N2: =IF(K18<0,K18+1,K18) -> 0.8383912037 | P2: =HOUR(N2) -> 20 | Q2: =MINUTE(N2) -> 7 | R2: =SECOND(N2) -> 17
C3: 1 | D3: 回目 | E3: 天測
B4: 観測天体 | C4: （太陽1、 | D4: 恒星2） | E4: 2 | G4: 恒星Ｎｏ | P4: =P2*15 -> 300 | Q4: =Q2*15 -> 105 | R4: =R2*15 -> 255
P5: =Q6+P4 -> 301 | Q5: =Q4/60 -> 1.75 | R5: =R4/60 -> 4.25
B6: 観測日 | C6: =恒星!C6 -> 2 | D6: 月 | E6: =恒星!E6 -> 10 | F6: 日 | Q6: =INT(Q5) -> 1 | R6: =ROUND(R5,1) -> 4.3 | X6: 0
B7: 観測時間 | C7: =恒星!C7 -> 18 | D7: 時 | E7: =恒星!E7 -> 30 | F7: 分頃 | J7: ｌ | K7: =IF(K10,"Ｎ","Ｓ") -> Ｎ | Q7: =Q5-Q6 -> 0.75
B8: 観測高度 | C8: =恒星!C8 -> 30 | D8: 度 | E8: =恒星!E8 -> 55 | F8: 分 | J8: Ｌ | K8: TRUE | Q8: =Q7*60 -> 45
B9: 器差 | E9: =恒星!E9 -> 3 | G9: 符号 | H9: =恒星!G10 -> 0 | J9: ｌ異符号 | K9: =IF(K10,"Ｓ","Ｎ") -> Ｓ | N9: ｈ(D) | P9: 度 | Q9: 分
B10: 観測時 緯度 | C10: =恒星!C10 -> 26 | D10: 度 | E10: =恒星!E10 -> 56.9 | F10: 分 | J10: ｌ’ | K10: TRUE | L10: =IF(K10,1,-2) -> 1 | M10: ＤＬ | N10: =P10+Q10/60 -> 301.8216667 | O10: 時角 ｈ | P10: =P5 -> 301 | Q10: =Q8+R6 -> 49.3
B11: 推測位置 経度 | C11: =恒星!C11 -> 137 | D11: 度 | E11: =恒星!E11 -> 44.1 | F11: 分 | J11: ｄ’ | K11: TRUE | L11: =IF(K11,1,-2) -> 1 | M11: =TIME(P22,Q22,R22) -> 0.3825925926
B12: クロノメ－タ－ | C12: =恒星!C13 -> 9 | D12: 時 | E12: =恒星!E13 -> 4 | F12: 分 | G12: =恒星!G13 -> 28 | H12: 秒 | J12: ＣＴ(S) | K12: =TIME(C12,E12,G12) -> 0.3781018519 | P12: 度 | Q12: 分
B13: エラ－ | E13: =恒星!E14 -> 11 | F13: 分 | G13: =恒星!G14 -> 25 | H13: 秒 | J13: ｅｒｏｒ(S) | K13: =TIME(C13,E13,G13) -> 0.007928240741 | M13: d,l同符号 | O13: 角度（ＤＬ） | P13: =恒星!C11 -> 137 | Q13: =恒星!E11 -> 44.1 | R13: =P13+Q13/60 -> 137.735 | S13: =R13/15 -> 9.182333333
C14: 進む | E14: 遅れる | J14: FALSE | K14: =IF(J14,K12-K13,K12+K13) -> 0.3860300926 | M14: =SIN(L19) -> 0.09251540876 | R14: =ROUNDDOWN(S13,0) -> 9 | S14: =S13-R14 -> 0.1823333333
B15: 天測暦、E◎ｏｒE* | C15: =恒星!C16 -> 1 | D15: 時 | E15: =恒星!E16 -> 40 | F15: 分 | G15: =恒星!G16 -> 28 | H15: 秒 | J15: E*(S) | K15: =TIME(C15,E15,G15) -> 0.06976851852 | M15: d,l異符号 | R15: =S14*60 -> 10.94 | S15: =ROUNDDOWN(R15,0) -> 10
B16: 赤緯（ｄ） | C16: =恒星!C17 -> 5 | D16: 度 | E16: =恒星!E17 -> 18.5 | F16: 分 | J16: ＧＨＡ(S) | K16: =K15+K14 -> 0.4557986111 | M16: =M14*-1 -> -0.09251540876 | R16: =R15-S15 -> 0.94 | S16: =R16*60 -> 56.4
B17: 眼高 | C17: =恒星!C18 -> 3 | D17: ｍ | G17: 符号 | J17: ＤＬ(S) | K17: =IF(K8,M11,M11*-1) -> 0.3825925926 | L17: ｒａｄｉａｎ | M17: ｓｉｎ | N17: ｃｏｓ | P17: ｈ | Q17: ｍ | R17: ｓ
B18: ログ指示値 | C18: =恒星!C19 -> 151.2 | D18: 海里 | J18: ｈ(S) | K18: =K16+K17 -> 0.8383912037 | L18: =RADIANS(N10) -> 5.267781837 | M18: =SIN(L18) -> -0.8496933614 | N18: =COS(L18) -> 0.5272771487
B19: 気温 | C19: =恒星!C20 -> 20 | D19: 度Ｃ | J19: ｄ | K19: =C16+E16/60 -> 5.308333333 | L19: =RADIANS(K19) -> 0.09264789446 | M19: =IF(L10-L11=0,M14,M16) -> 0.09251540876 | N19: =COS(L19) -> 0.9957112529
B20: 水温 | C20: =恒星!C21 -> 20 | D20: 度Ｃ | J20: ｌ | K20: =C10+E10/60 -> 26.94833333 | L20: =RADIANS(K20) -> 0.4703371446 | M20: =SIN(L20) -> 0.4531868471 | N20: =COS(L20) -> 0.8914155494
B21: 天体概方位 | C21: =恒星!C22 -> Ｓ | D21: =恒星!D22 -> 20 | E21: 度 | F21: =恒星!F22 -> E | G21: 符号 | J21: ｌ、ｄ同異 | K21: =M20*M19+N20*N19*N18 -> 0.5099340056
J22: Ａｃ | K22: =ASIN(K21) -> 0.5351080699 | L22: =RADIANS(K23) -> 0.5351080699 | N22: =COS(L22) -> 0.8602135258 | O22: 時間（ＤＬ） | P22: =R14 -> 9 | Q22: =S15 -> 10 | R22: =IF(S16>=60,S16-60,S16) -> 56.4
J23: ｄｅｇ | K23: =DEGREES(K22) -> 30.65943399 | L23: Ｅ | M23: =M14/M20 -> 0.2041440729 | N23: =ASIN(M23) -> 0.2055892875
B24: 天測結果 | J24: ＡＢＳｄｅｇ | K24: =ABS(K23) -> 30.65943399
B25: 修正差（I） | C25: =M28 -> 14.2 | D25: =IF(C25>100,"ミスがあるか、流されているので注意！","") ->  | K25: =ROUNDDOWN(K24,0) -> 30 | L25: =(K24-K25)*60 -> 39.56603928 | M25: =ROUND(L25,1) -> 39.6 | O25: ａｎｏｔｈｅｒ | P25: =IF(L10-L11=0,"",K9) -> 
O26: ｓａｍｅ
C27: 符号 | J27: Ａｏ | K27: =恒星!C8+恒星!E8/60 -> 30.91666667 | L27: Ｉ | M27: =(K33-K24)*60 -> 14.23396072 | O27: ｄ-ｌ＞0 | P27: ｄ＜ｌ
C28: =L33 ->  | D28: 度 | E28: 符号 | J28: ＩＥ | K28: =恒星!E9/60 -> 0.05 | M28: =ROUND(M27,1) -> 14.2 | O28: =K19-K20 -> -21.64
B29: 方位角（Z） | C29: =L34 ->  | D29: =M33 -> 80 | E29: =N33 -> Ｅ | J29: Ａｓ | K29: =K27+K28 -> 30.96666667 | L29: ｚ | M29: =M18*N19/N22 -> -0.9835339903 | O29: =IF(O28>0,'計（恒星）'!K7,"") ->  | P29: Ｅ-Ａｃ | Q29: Ｅ＜Ａｃ
C30: =L35 -> Ｓ | J30: 1 | K30: =C105/60 -> -0.07 | M30: =ASIN(M29) -> -1.389074575 | P30: =N23-K29 -> -30.76107738
J31: 2 | M31: =DEGREES(M30) -> -79.5881106 | O31: =IF(L10-L11=0,O32,"") -> Ｓ | P31: =IF(P30>0,K7,K9) -> Ｓ
J32: 3 | K32: =G115/60 -> 0 | M32: =ABS(M31) -> 79.5881106 | O32: =IF(O28<0,P31,"") -> Ｓ
J33: Ａｔ | K33: =K29+K30+K31+K32 -> 30.89666667 | L33: =IF(L10-L11=0,"",P25) ->  | M33: =ROUND(M32,0) -> 80 | N33: =IF(N10>180,"Ｅ","Ｗ") -> Ｅ | O33: Ａｔ | P33: =ROUNDDOWN(K33,0) -> 30 | Q33: =(K33-P33)*60 -> 53.8
B34: 入力禁止 | L34: =IF(L10-L11=0,O29,"") ->  | O34: Ac | P34: =K25 -> 30 | Q34: =M25 -> 39.6
B35: 任意の時間のＥ*を求める | L35: =O31 -> Ｓ | O35: I | Q35: =M28 -> 14.2
B36: Ｅ* Ｕ＝0時（ｈ） | C36: =恒星!C38 -> 1 | D36: ｈ | E36: =恒星!E38 -> 38 | F36: ｍ | G36: =恒星!G38 -> 56 | H36: ｓ | I36: 天測暦
B37: 求めるＥ*の時間 | C37: =恒星!C39 -> 9 | D37: ｈ | E37: =恒星!E39 -> 15 | F37: ｍ | G37: =恒星!G39 -> 53 | H37: ｓ | L37: =IF(K10+K11=0,O29,"") -> 
C38: =HOUR(H71) -> 1 | E38: =MINUTE(H71) -> 40 | G38: =SECOND(H71) -> 28 | O38: =IF(O28<0,"",P31) -> 
B39: 求めるＥ* | C39: =恒星!C42 -> 1 | D39: ｈ | E39: =恒星!E42 -> 40 | F39: ｍ | G39: =恒星!G42 -> 28 | H39: ｓ
B40: Ｅ* 比例部分 | C40: 分 秒
B41: Ｕ | C41: 0 | D41: 10 | E41: 20 | F41: 30 | G41: 40 | H41: 50 | I41: 60
B42: 0 | C42: 0ｍ00 | D42: 0ｍ02 | E42: 0ｍ03 | F42: 0ｍ05 | G42: 0ｍ07 | H42: 0ｍ08 | I42: 0ｍ10
B43: 1 | C43: 0ｍ10 | D43: 0ｍ11 | E43: 0ｍ13 | F43: 0ｍ15 | G43: 0ｍ16 | H43: 0ｍ18 | I43: 0ｍ20
B44: 2 | C44: 0ｍ20 | D44: 0ｍ21 | E44: 0ｍ23 | F44: 0ｍ25 | G44: 0ｍ26 | H44: 0ｍ28 | I44: 0ｍ30
B45: 3 | C45: 0ｍ30 | D45: 0ｍ31 | E45: 0ｍ33 | F45: 0ｍ34 | G45: 0ｍ36 | H45: 0ｍ38 | I45: 0ｍ39
B46: 4 | C46: 0ｍ39 | D46: 0ｍ41 | E46: 0ｍ43 | F46: 0ｍ44 | G46: 0ｍ46 | H46: 0ｍ48 | I46: 0ｍ49
B47: 5 | C47: 0ｍ49 | D47: 0ｍ51 | E47: 0ｍ53 | F47: 0ｍ54 | G47: 0ｍ56 | H47: 0ｍ57 | I47: 0ｍ59
B48: 6 | C48: 0ｍ59 | D48: 1ｍ01 | E48: 1ｍ02 | F48: 1ｍ04 | G48: 1ｍ06 | H48: 1ｍ07 | I48: 1ｍ09
B49: 7 | C49: 1ｍ09 | D49: 1ｍ11 | E49: 1ｍ12 | F49: 1ｍ14 | G49: 1ｍ16 | H49: 1ｍ17 | I49: 1ｍ19
B50: 8 | C50: 1ｍ19 | D50: 1ｍ20 | E50: 1ｍ22 | F50: 1ｍ24 | G50: 1ｍ25 | H50: 1ｍ27 | I50: 1ｍ29
B51: 9 | C51: 1ｍ29 | D51: 1ｍ30 | E51: 1ｍ32 | F51: 1ｍ34 | G51: 1ｍ35 | H51: 1ｍ37 | I51: 1ｍ39
B52: 10 | C52: 1ｍ39 | D52: 1ｍ40 | E52: 1ｍ42 | F52: 1ｍ43 | G52: 1ｍ45 | H52: 1ｍ47 | I52: 1ｍ48
B53: 11 | C53: 1ｍ48 | D53: 1ｍ50 | E53: 1ｍ52 | F53: 1ｍ53 | G53: 1ｍ55 | H53: 1ｍ57 | I53: 1ｍ58
B54: 12 | C54: 1ｍ58 | D54: 2ｍ00 | E54: 2ｍ02 | F54: 2ｍ03 | G54: 2ｍ05 | H54: 2ｍ06 | I54: 2ｍ08
B55: 13 | C55: 2ｍ08 | D55: 2ｍ10 | E55: 2ｍ11 | F55: 2ｍ13 | G55: 2ｍ15 | H55: 2ｍ16 | I55: 2ｍ18
B56: 14 | C56: 2ｍ18 | D56: 2ｍ20 | E56: 2ｍ21 | F56: 2ｍ23 | G56: 2ｍ25 | H56: 2ｍ26 | I56: 2ｍ28
B57: 15 | C57: 2ｍ28 | D57: 2ｍ29 | E57: 2ｍ31 | F57: 2ｍ33 | G57: 2ｍ34 | H57: 2ｍ36 | I57: 2ｍ38
B58: 16 | C58: 2ｍ38 | D58: 2ｍ39 | E58: 2ｍ41 | F58: 2ｍ43 | G58: 2ｍ44 | H58: 2ｍ46 | I58: 2ｍ47
B59: 17 | C59: 2ｍ48 | D59: 2ｍ49 | E59: 2ｍ51 | F59: 2ｍ52 | G59: 2ｍ54 | H59: 2ｍ56 | I59: 2ｍ57
B60: 18 | C60: 2ｍ57 | D60: 2ｍ59 | E60: 3ｍ01 | F60: 3ｍ02 | G60: 3ｍ04 | H60: 3ｍ06 | I60: 3ｍ07
B61: 19 | C61: 3ｍ07 | D61: 3ｍ09 | E61: 3ｍ11 | F61: 3ｍ12 | G61: 3ｍ14 | H61: 3ｍ15 | I61: 3ｍ17
B62: 20 | C62: 3ｍ17 | D62: 3ｍ19 | E62: 3ｍ20 | F62: 3ｍ22 | G62: 3ｍ24 | H62: 3ｍ25 | I62: 3ｍ27
B63: 21 | C63: 3ｍ27 | D63: 3ｍ29 | E63: 3ｍ30 | F63: 3ｍ32 | G63: 3ｍ34 | H63: 3ｍ35 | I63: 3ｍ37
B64: 22 | C64: 3ｍ37 | D64: 3ｍ38 | E64: 3ｍ40 | F64: 3ｍ42 | G64: 3ｍ43 | H64: 3ｍ45 | I64: 3ｍ47
B65: 23 | C65: 3ｍ47 | D65: 3ｍ48 | E65: 3ｍ50 | F65: 3ｍ52 | G65: 3ｍ53 | H65: 3ｍ55 | I65: 3ｍ57
B67: Ｕ＝０ | C67: ｖｌｕｐ | D67: ｖｌｕｐ | E67: ｖｌｕｐ | F67: ｖｌｕｐ | G67: ｖｌｕｐ | H67: ｖｌｕｐ | I67: ｖｌｕｐ
C68: 0 | D68: 10 | E68: 20 | F68: 30 | G68: 40 | H68: 50 | I68: 60
B69: =C37+E37/60+G37/3600 -> 9.264722222 | C69: =VLOOKUP(B69,B42:I65,2,1) -> 1ｍ29 | D69: =VLOOKUP(C69,C42:J65,2,1) -> 1ｍ30 | E69: =VLOOKUP(D69,D42:K65,2,1) -> 1ｍ32 | F69: =VLOOKUP(E69,E42:L65,2,1) -> 1ｍ34 | G69: =VLOOKUP(F69,F42:N65,2,1) -> 1ｍ35 | H69: =VLOOKUP(G69,G42:O65,2,1) -> 1ｍ37 | I69: =VLOOKUP(H69,H42:P65,2,1) -> 1ｍ39
B70: =E37+G37/60 -> 15.88333333 | D70: ｍ | E70: ｓ | F70: ｈｍｓ（ｐｐ） | G70: ｈｍｓ
B71: =ROUND(B70,-1) -> 20 | C71: =HLOOKUP(B71,C68:I69,2,1) -> 1ｍ32 | D71: =LEFT(C71,1) -> 1 | E71: =MID(C71,3,2) -> 32 | F71: =TIME(0,D71,E71) -> 0.001064814815 | G71: =TIME(C36,E36,G36) -> 0.0687037037 | H71: =F71+G71 -> 0.06976851852
G74: 改正２
B75: 改正1 | C75: 改正値 | G75: 視平視差 | H75: 惑星 | I75: （恒星には使用しません）
B76: 星 | C76: 眼高 | E76: 眼高 | G76: 0.2 | H76: 観測 | I76: 高度
B77: 高度 | C77: 2ｍ | D77: 高度 | E77: 3ｍ | G77: ＨＰ | H77: 10 | I77: 30 | J77: 50 | K77: 70 | L77: 90
B78: 15 | C78: -6.6 | D78: 15 | E78: -6.1 | G78: 0.1 | H78: 0.1 | I78: 0.1 | J78: 0.1 | K78: 0.1 | L78: 0.1
B79: 16 | C79: -6.4 | D79: 16 | E79: -5.8 | G79: 0.2 | H79: 0.2 | I79: 0.2 | J79: 0.2 | K79: 0.1 | L79: 0
B80: 17 | C80: -6.2 | D80: 17 | E80: -5.6 | G80: 0.3 | H80: 0.3 | I80: 0.3 | J80: 0.2 | K80: 0.1 | L80: 0
B81: 18 | C81: -6 | D81: 18 | E81: -5.5 | G81: 0.4 | H81: 0.4 | I81: 0.3 | J81: 0.2 | K81: 0.1 | L81: 0
B82: 20 | C82: -5.7 | D82: 20 | E82: -5.1 | G82: 0.5 | H82: 0.5 | I82: 0.4 | J82: 0.3 | K82: 0.2 | L82: 0
B83: 22 | C83: -5.5 | D83: 22 | E83: -4.9 | G83: 0.6 | H83: 0.6 | I83: 0.5 | J83: 0.4 | K83: 0.2 | L83: 0
B84: 24 | C84: -5.2 | D84: 24 | E84: -4.7
B85: 26 | C85: -5 | D85: 26 | E85: -4.5 | G85: =G76 -> 0.2 | H85: =VLOOKUP(G85,G78:H83,2,1) -> 0.2 | I85: =VLOOKUP(G85,G78:I83,3,1) -> 0.2 | J85: =VLOOKUP(G85,G78:J83,4,1) -> 0.2 | K85: =VLOOKUP(G85,G78:K83,5,1) -> 0.1 | L85: =VLOOKUP(G85,G78:L83,6,1) -> 0
B86: 28 | C86: -4.9 | D86: 28 | E86: -4.3 | G86: 10 | H86: =H85 -> 0.2
B87: 30 | C87: -4.7 | D87: 30 | E87: -4.2 | G87: 30 | H87: =I85 -> 0.2
B88: 32 | C88: -4.6 | D88: 32 | E88: -4.1 | G88: 50 | H88: =J85 -> 0.2
B89: 34 | C89: -4.5 | D89: 34 | E89: -3.9 | G89: 70 | H89: =K85 -> 0.1
B90: 36 | C90: -4.4 | D90: 36 | E90: -3.8 | G90: 90 | H90: =L85 -> 0
B91: 38 | C91: -4.3 | D91: 38 | E91: -3.7 | G91: =K29 -> 30.96666667 | H91: =VLOOKUP(G91,G86:H91,2,1) -> 0.2
B92: 40 | C92: -4.2 | D92: 40 | E92: -3.7
B93: 45 | C93: -4 | D93: 45 | E93: -3.5
B94: 50 | C94: -3.9 | D94: 50 | E94: -3.3
B95: 55 | C95: -3.8 | D95: 55 | E95: -3.2 | G95: 改正値 | H95: =G115 -> 0
B96: 60 | C96: -3.6 | D96: 60 | E96: -3.1 | G96: 改正3 | H96: 太陽と | I96: 星
B97: 65 | C97: -3.5 | D97: 65 | E97: -3 | G97: 気温- | H97: 水温＝ | I97: 差
B98: 70 | C98: -3.4 | D98: 70 | E98: -2.9 | G98: ℃差 | H98: + | I98: -
B99: 75 | C99: -3.3 | D99: 75 | E99: -2.8 | G99: 0 | H99: 0 | I99: 0
B100: 80 | C100: -3.2 | D100: 80 | E100: -2.7 | G100: 1 | H100: 0.2 | I100: -0.2
B101: 85 | C101: -3.2 | D101: 85 | E101: -2.6 | G101: 2 | H101: 0.4 | I101: -0.4
B102: 90 | C102: -3.1 | D102: 90 | E102: -2.5 | G102: 3 | H102: 0.6 | I102: -0.6
B103: =K29 -> 30.96666667 | G103: 4 | H103: 0.8 | I103: -0.8
B104: =ROUND(B103,0) -> 31 | C104: =VLOOKUP(B104,B78:C102,2,1) -> -4.7 | D104: =B104 -> 31 | E104: =VLOOKUP(D104,D78:E102,2,1) -> -4.2 | G104: 5 | H104: 1 | I104: -1
C105: =IF(恒星!C18=2,C104,E104) -> -4.2 | G105: 6 | H105: 1.2 | I105: -1.2
G106: 7 | H106: 1.4 | I106: -1.4
G107: 8 | H107: 1.6 | I107: -1.6
G108: 9 | H108: 1.8 | I108: -1.8
G109: 10 | H109: 2 | I109: -2
G110: 11 | H110: 2.2 | I110: -2.2
G111: 12 | H111: 2.4 | I111: -2.4
G112: 13 | H112: 2.6 | I112: -2.6
G113: 14 | H113: 2.8 | I113: -2.8
G114: =ABS(H115) -> 0 | H114: =VLOOKUP(G114,G99:I113,2,1) -> 0 | I114: =VLOOKUP(G114,G99:I113,3,1) -> 0
G115: =IF(H115>=0,H114,I114) -> 0 | H115: =恒星!C20-恒星!C21 -> 0

Sheet 予備
B1: 入力禁止
A2: 第１回観測
A3: =太陽!C5 -> 1 | B3: 月 | C3: 日 | E3: 気温 | F3: 水温 | I3: 緯度 | J3: 分 | M3: 経度 | N3: 分
A4: 観測月日 | B4: =太陽!C6 -> 2 | C4: =太陽!E6 -> 10 | E4: =太陽!C23 -> 20 | F4: =太陽!C24 -> 20 | I4: =太陽!C9 -> 27 | J4: =太陽!E9 -> 15 | K4: =PROPER(太陽!G9) ->  | M4: =太陽!C10 -> 138 | N4: =太陽!E10 -> 40 | O4: =PROPER(太陽!G10) ->  | P4: =IF(O4="E","W","E") -> E
B5: 時 | C5: 分 | F5: 眼高 | H5: =I4*60+J4 -> 1635 | I5: =I6*60+J6 -> 0 | J5: =IF(K5,H5+I5,H5-I5) -> 1635 | K5: =EXACT(K4,K6) -> FALSE | L5: =M4*60+N4 -> 8320 | M5: =M6*60+N6 -> 0 | N5: =IF(O5,L5+M5,L5-M5) -> 8320 | O5: =EXACT(Q6,O6) -> FALSE
A6: 観測時 | B6: =太陽!C6 -> 2 | C6: =太陽!E7 -> 50 | D6: 頃 | F6: =太陽!C21 -> 3 | H6: 変緯 | J6: 0 | K6: S | L6: 変経 | M6: 0 | N6: 0 | O6: W
C7: 分 | D7: 秒 | I7: =J5/60 -> 27.25 | J7: =ROUNDDOWN(I7,0) -> 27 | K7: =I7-J7 -> 0.25 | M7: =N5/60 -> 138.6666667 | N7: =ROUNDDOWN(M7,0) -> 138 | O7: =M7-N7 -> 0.6666666667
A8: クロノメ-タ－ | B8: =太陽!C12 -> 5 | C8: =太陽!E12 -> 23 | D8: =太陽!G12 -> 46 | E8: 遅れ | F8: 進む | K8: =K7*60 -> 15 | M8: =IF(M7>=180,N7-1,N7) -> 138 | N8: =IF(M7>=180,60-O8,O8) -> 40 | O8: =O7*60 -> 40
A9: エラ－ | C9: =太陽!E13 -> 11 | D9: =太陽!G13 -> 25 | G9: 推測 | I9: 緯度 | J9: 分 | M9: 経度 | N9: 分
B10: =TIME(B8,C8,D8) -> 0.224837963 | C10: =TIME(B9,C9,D9) -> 0.007928240741 | D10: =B10+C10 -> 0.2327662037 | E10: 加算 | F10: 減算 | G10: 位置 | I10: =J7 -> 27 | J10: =K8 -> 15 | K10: =H12 ->  | M10: =M8 -> 138 | N10: =N8 -> 40 | O10: =P12 -> 
A11: FALSE | B11: =HOUR(D10) -> 5 | C11: =MINUTE(D10) -> 35 | D11: =SECOND(D10) -> 11
A12: =IF(A11,B10-C10,D10) -> 0.2327662037 | B12: =HOUR(A12) -> 5 | C12: =MINUTE(A12) -> 35 | D12: =SECOND(A12) -> 11 | H12: =IF(H5>I5,K4,K6) ->  | P12: =IF(N7>=180,P4,O4) -> 
E13: どちらか | F13: チェック | G13: 時間 | H13: ｈ | I13: ｍ | J13: ｓ | L13: 角度 | M13: =H22 -> 260 | N13: =I22 -> 13.5
A14: グリニッチ時 | B14: 時 | C14: 分 | D14: 秒 | H14: =B20 -> 17 | I14: =C20 -> 20 | J14: =D20 -> 54 | M14: +
A15: Ｕ | B15: =B16 -> 5 | C15: =C16 -> 35 | D15: =D16 -> 11
A16: Ｕ | B16: =IF(A11,B12,B11) -> 5 | C16: =IF(A11,C12,C11) -> 35 | D16: =D12 -> 11 | H16: =H14*15 -> 255 | I16: =I14*15 -> 300 | J16: =J14*15 -> 810 | L16: 角度 | M16: =B22 -> 138 | N16: =C22 -> 40 | O16: =D22 -> 
A17: + | B17: =TIME(B16,C16,D16) -> 0.2327662037 | C17: =TIME(B18,C18,D18) -> 0.4900810185 | D17: =B17+C17 -> 0.7228472222 | H17: =I18+H16 -> 260 | I17: =I16/60 -> 5 | J17: =J16/60 -> 13.5 | L17: =M13*60+N13 -> 15613.5 | M17: =M16*60+N16 -> 8320 | N17: =IF(O16="Ｗ",L17-M17,L17+M17) -> 23933.5
A18: Ｅ◎(時間）; | B18: =太陽!C19 -> 11 | C18: =太陽!E19 -> 45 | D18: =太陽!G19 -> 43 | F18: 天 | I18: =INT(I17) -> 5 | J18: =ROUND(J17,1) -> 13.5 | L18: =N17/60 -> 398.8916667 | M18: =ROUNDDOWN(L18,0) -> 398 | N18: =(L18-M18)*60 -> 53.5
F19: 測 | I19: =I17-I18 -> 0 | M19: =IF(M18>=360,M18-360,M18) -> 38
A20: U+Ｅ◎ | B20: =B25+HOUR(D17) -> 17 | C20: =MINUTE(D17) -> 20 | D20: =SECOND(D17) -> 54 | F20: 暦 | I20: =I19*60 -> 0 | L20: =IF(O16="W",L17-M17,L17+M17) -> 23933.5
A21: （角度） | B21: =H22 -> 260 | C21: =I22 -> 13.5 | H21: 度 | I21: 分 | L21: 答え | M21: =M19 -> 38 | N21: =N18 -> 53.5
A22: 推測経度 | B22: =M10 -> 138 | C22: =N10 -> 40 | D22: =O10 ->  | G22: 角度 | H22: =H17 -> 260 | I22: =I20+J18 -> 13.5
A23: Ｈ | B23: =M21 -> 38 | C23: =N21 -> 53.5 | D23: D； | E23: =E26 -> 14 | F23: =F26 -> 38.7 | G23: =G26 ->  | H23: Ｌ； | I23: =I26 -> 27 | J23: =J26 -> 15 | K23: =K26 -> 
A26: Ｈ； | B26: =B23 -> 38 | C26: =N21 -> 53.5 | D26: D； | E26: =太陽!C20 -> 14 | F26: =太陽!E20 -> 38.7 | G26: =PROPER(太陽!G20) ->  | H26: Ｌ； | I26: =I10 -> 27 | J26: =J10 -> 15 | K26: =K10 -> 
B27: =B26+C26/60 -> 38.89166667 | C27: =RADIANS(B27) -> 0.6787876349 | E27: =E26+F26/60 -> 14.645 | F27: =RADIANS(E27) -> 0.255603469 | I27: =I26+J26/60 -> 27.25 | J27: =RADIANS(I27) -> 0.4756022212 | K27: =IF(K26="N","S","N") -> N | M27: =IF(G26=K26,I26*60+J26-(E26*60+F26),"緯度符号と反対符号") -> 756.3
A28: sin | C28: =SIN(C27) -> 0.6278498601 | F28: =SIN(F27) -> 0.2528293174 | J28: =SIN(J27) -> 0.4578739151 | L28: sinE | M28: =IF(M27<0,I46=K26,F28/J28) -> 0.5521810898 | N28: =ASIN(M28) -> 0.5849780591
A29: cos | C29: =COS(C27) -> 0.7783344738 | F29: =COS(F27) -> 0.9675108972 | J29: =COS(J27) -> 0.8890171415 | L29: cosAc | M29: =IF(M28-F31>0,G46=K26,"N→Ｓ、Ｓ→Ｎ") -> N→Ｓ、Ｓ→Ｎ
A30: sun*sin | B30: =F28*J28 -> 0.1157639494 | D30: =IF(G26=K26,B30+B31,B30-B31) -> 0.7852357164 | G30: rounddown | I30: round | L30: =COS(D31) -> 0.6191969555
A31: cos*cos*cos | B31: =C29*F29*J29 -> 0.669471767 | C31: Asin | D31: =ASIN(D30) -> 0.9030767161 | E31: degree | F31: =DEGREES(D31) -> 51.74248441 | G31: =ROUNDDOWN(F31,0) -> 51 | H31: =(F31-G31)*60 -> 44.54906442 | I31: =ROUND(H31,1) -> 44.5
B32: 度 | C32: 分 | F32: =ABS(F31) -> 51.74248441 | J32: Asin
A33: 計算高度 | B33: =ABS(G31) -> 51 | C33: =ABS(I31) -> 44.5 | I33: =C28*F29/L30 -> 0.9810312795 | J33: =ASIN(I33) -> 1.375711759
J34: =DEGREES(J33) -> 78.82247759 | K34: =ROUND(J34,1) -> 78.8
B35: 度 | C35: 分 | F35: same | G35: =EXACT(G26,K26) -> TRUE
A36: 観測高度 | B36: =太陽!C16 -> 33 | C36: =太陽!E16 -> 34 | D36: =B36+C36/60 -> 33.56666667 | F36: D>L | G36: =E27-I27 -> -12.605 | H36: =IF(G36>0,K26,"") ->  | I36: =IF(G35,H36,"") -> 
A37: 器差 | C37: =太陽!E17 -> 0 | D37: =B37+C37/60 -> 0 | F37: E | G37: =F28/J28 -> 0.5521810898 | H37: =ASIN(G37) -> 0.5849780591 | I37: =DEGREES(H37) -> 33.51677389
B38: =D36+D37 -> 33.56666667 | C38: =ROUNDDOWN(B38,0) -> 33 | D38: =B38-C38 -> 0.5666666667 | F38: E>Alt | G38: =I37-F32 -> -18.22571052 | H38: =IF(G38>0,K26,K27) -> N | I38: =IF(G35,H38,"") -> N
B39: =C38 -> 33 | C39: =D38*60 -> 34 | F39: another | G39: =IF(G35,"",G26) -> 
A40: 改正１ | C40: =B81 -> 11.3 | D40: =B40+C40/60 -> 0.1883333333 | F40: d$L | G40: =G35 -> TRUE | H40: d>L | I40: =G36 -> -12.605 | L40: d,same
A41: 改正2 | C41: =K66 -> 0.5 | D41: =B41+C41/60 -> 0.008333333333 | H41: d<L | J41: E>AL | K41: =G38 -> -18.22571052 | L41: d,same
A42: 改正3 | C42: =N70 -> 0 | D42: =B42+C42/60 -> 0 | J42: E<AL | L42: d,other
B43: =D40+D41+D42 -> 0.1966666667 | C43: =B38+B43 -> 33.76333333 | D43: =ROUNDDOWN(C43,0) -> 33 | E43: =C43-D43 -> 0.7633333333 | G43: other | H43: d,other
A44: 真高度 | B44: =D43 -> 33 | C44: =E44 -> 45.8 | D44: =B44+C44/60 -> 33.76333333 | E44: =E43*60 -> 45.8 | G44: 符号 | H44: 度 | I44: 符号
A45: 計算高度 | B45: =B33 -> 51 | C45: =C33 -> 44.5 | D45: =B45+C45/60 -> 51.74166667 | F45: 方 | G45: =I36 -> 
A46: 修正差（ Ｉ ） | C46: =E46 -> -1078.7 | D46: =D44-D45 -> -17.97833333 | E46: =D46*60 -> -1078.7 | F46: 位（Z) | G46: =I38 -> N | H46: =ABS(K34) -> 78.8 | I46: =IF(B26+C26/60>180,"Ｅ","Ｗ") -> Ｗ
F47: 角 | G47: =G39 -> 
A50: 改正1 | E50: 改正1
A51: 太陽 | B51: 眼高 | D51: 眼高 | E51: 星 | F51: 眼高 | H51: 眼高 | J51: 改正２ | K51: 太陽 | N51: 改正3 | O51: 太陽と | P51: 星
A52: 高度 | B52: 2ｍ | C52: 高度 | D52: 3ｍ | E52: 高度 | F52: 2ｍ | G52: 高度 | H52: 3ｍ | J52: 月 | K52: 下辺 | N52: 気温- | O52: 水温＝ | P52: 差
A53: 15 | B53: 9.8 | C53: 15 | D53: 9.3 | E53: 15 | F53: -6.6 | G53: 15 | H53: -6.1 | J53: 1 | K53: 0.5 | N53: ℃差 | O53: + | P53: -
A54: 16 | B54: 10.1 | C54: 16 | D54: 9.5 | E54: 16 | F54: -6.4 | G54: 16 | H54: -5.8 | J54: 2 | K54: 0.5 | N54: 0 | O54: 0 | P54: 0
A55: 17 | B55: 10.3 | C55: 17 | D55: 9.7 | E55: 17 | F55: -6.2 | G55: 17 | H55: -5.6 | J55: 3 | K55: 0.4 | N55: 1 | O55: 0.2 | P55: -0.2
A56: 18 | B56: 10.4 | C56: 18 | D56: 9.9 | E56: 18 | F56: -6 | G56: 18 | H56: -5.5 | J56: 4 | K56: 0.2 | N56: 2 | O56: 0.4 | P56: -0.4
A57: 20 | B57: 10.7 | C57: 20 | D57: 10.2 | E57: 20 | F57: -5.7 | G57: 20 | H57: -5.1 | J57: 5 | K57: 0.1 | N57: 3 | O57: 0.6 | P57: -0.6
A58: 22 | B58: 11 | C58: 22 | D58: 10.4 | E58: 22 | F58: -5.5 | G58: 22 | H58: -4.9 | J58: 6 | K58: 0 | N58: 4 | O58: 0.8 | P58: -0.8
A59: 24 | B59: 11.2 | C59: 24 | D59: 10.7 | E59: 24 | F59: -5.2 | G59: 24 | H59: -4.7 | J59: 7 | K59: 0 | N59: 5 | O59: 1 | P59: -1
A60: 26 | B60: 11.4 | C60: 26 | D60: 10.8 | E60: 26 | F60: -5 | G60: 26 | H60: -4.5 | J60: 8 | K60: 0.1 | N60: 6 | O60: 1.2 | P60: -1.2
A61: 28 | B61: 11.6 | C61: 28 | D61: 11 | E61: 28 | F61: -4.9 | G61: 28 | H61: -4.3 | J61: 9 | K61: 0.2 | N61: 7 | O61: 1.4 | P61: -1.4
A62: 30 | B62: 11.7 | C62: 30 | D62: 11.1 | E62: 30 | F62: -4.7 | G62: 30 | H62: -4.2 | J62: 10 | K62: 0.3 | N62: 8 | O62: 1.6 | P62: -1.6
A63: 32 | B63: 11.8 | C63: 32 | D63: 11.3 | E63: 32 | F63: -4.6 | G63: 32 | H63: -4.1 | J63: 11 | K63: 0.3 | N63: 9 | O63: 1.8 | P63: -1.8
A64: 34 | B64: 11.9 | C64: 34 | D64: 11.4 | E64: 34 | F64: -4.5 | G64: 34 | H64: -3.9 | J64: 12 | K64: 0.5 | N64: 10 | O64: 2 | P64: -2
A65: 36 | B65: 12 | C65: 36 | D65: 11.5 | E65: 36 | F65: -4.4 | G65: 36 | H65: -3.8 | N65: 11 | O65: 2.2 | P65: -2.2
A66: 38 | B66: 12.1 | C66: 38 | D66: 11.6 | E66: 38 | F66: -4.3 | G66: 38 | H66: -3.7 | J66: =J67 -> 2 | K66: =VLOOKUP(J66,J53:K64,2,0) -> 0.5 | N66: 12 | O66: 2.4 | P66: -2.4
A67: 40 | B67: 12.2 | C67: 40 | D67: 11.6 | E67: 40 | F67: -4.2 | G67: 40 | H67: -3.7 | J67: =IF(C4>=16,B4+1,B4) -> 2 | N67: 13 | O67: 2.6 | P67: -2.6
A68: 45 | B68: 12.4 | C68: 45 | D68: 11.8 | E68: 45 | F68: -4 | G68: 45 | H68: -3.5 | N68: 14 | O68: 2.8 | P68: -2.8
A69: 50 | B69: 12.5 | C69: 50 | D69: 12 | E69: 50 | F69: -3.9 | G69: 50 | H69: -3.3 | M69: =E4-F4 -> 0 | N69: =ABS(M69) -> 0 | O69: =VLOOKUP(N69,N54:P68,2,1) -> 0 | P69: =VLOOKUP(N69,N54:P68,3,1) -> 0
A70: 55 | B70: 12.6 | C70: 55 | D70: 12.1 | E70: 55 | F70: -3.8 | G70: 55 | H70: -3.2 | M70: ｄｉｆ | N70: =IF(M69>=0,O69,P69) -> 0
A71: 60 | B71: 12.8 | C71: 60 | D71: 12.2 | E71: 60 | F71: -3.6 | G71: 60 | H71: -3.1 | J71: 改正２
A72: 65 | B72: 12.9 | C72: 65 | D72: 12.3 | E72: 65 | F72: -3.5 | G72: 65 | H72: -3 | J72: 惑星 | K72: 観測 | L72: 高度
A73: 70 | B73: 12.9 | C73: 70 | D73: 12.4 | E73: 70 | F73: -3.4 | G73: 70 | H73: -2.9 | J73: ＨＰ | K73: 10 | L73: 30 | M73: 50 | N73: 70 | O73: 90
A74: 75 | B74: 13 | C74: 75 | D74: 12.5 | E74: 75 | F74: -3.3 | G74: 75 | H74: -2.8 | J74: 0.1 | K74: 0.1 | L74: 0.1 | M74: 0.1 | N74: 0.1 | O74: 0.1
A75: 80 | B75: 13.1 | C75: 80 | D75: 12.5 | E75: 80 | F75: -3.2 | G75: 80 | H75: -2.7 | J75: 0.2 | K75: 0.2 | L75: 0.2 | M75: 0.2 | N75: 0.1 | O75: 0
A76: 85 | B76: 13.2 | C76: 85 | D76: 12.6 | E76: 85 | F76: -3.2 | G76: 85 | H76: -2.6 | J76: 0.3 | K76: 0.3 | L76: 0.3 | M76: 0.2 | N76: 0.1 | O76: 0
A77: 90 | B77: 13.2 | C77: 90 | D77: 12.7 | E77: 90 | F77: -3.1 | G77: 90 | H77: -2.5 | J77: 0.4 | K77: 0.4 | L77: 0.3 | M77: 0.2 | N77: 0.1 | O77: 0
J78: 0.5 | K78: 0.5 | L78: 0.4 | M78: 0.3 | N78: 0.2 | O78: 0
A79: =B38 -> 33.56666667 | B79: =VLOOKUP(A79,A53:B77,2,1) -> 11.8 | C79: =B38 -> 33.56666667 | D79: =VLOOKUP(C79,C53:D77,2,1) -> 11.3 | E79: =B38 -> 33.56666667 | F79: =VLOOKUP(E79,E53:F77,2,1) -> -4.6 | G79: =B38 -> 33.56666667 | H79: =VLOOKUP(G79,G53:H77,2,1) -> -4.1 | J79: 0.6 | K79: 0.6 | L79: 0.5 | M79: 0.4 | N79: 0.2 | O79: 0
B80: =IF(F6=2,B79,D79) -> 11.3 | F80: =IF(F6=2,F79,H79) -> -4.1
B81: =IF(A3=1,B80,F80) -> 11.3 | J81: 0.2 | K81: =VLOOKUP(J81,J74:K79,2,1) -> 0.2 | L81: =VLOOKUP(J81,J74:L79,3,1) -> 0.2 | M81: =VLOOKUP(J81,J74:M79,4,1) -> 0.2 | N81: =VLOOKUP(J81,J74:N79,5,1) -> 0.1 | O81: =VLOOKUP(J81,J74:O79,6,1) -> 0
J82: 10 | K82: =K81 -> 0.2
J83: 30 | K83: =L81 -> 0.2
J84: 50 | K84: =M81 -> 0.2
J85: 70 | K85: =N81 -> 0.1
J86: 90 | K86: =O81 -> 0
J87: =B36 -> 33 | K87: =VLOOKUP(J87,J82:K87,2,1) -> 0.2
